Workbook

Sheet Приложение (2)
Q1: "ПРИЛОЖЕНИЕ № 1 к государственной программе Забайкальского края "Развитие физической культуры и спорта в Забайкальском крае"
A5: Основные мероприятия, мероприятия, показатели и объемы финансирования государственной программы Забайкальского края "Развитие физической культуры и спорта в Забайкальском крае"
A6: № | B6: Наименование целей, задач, подпрограмм, основных мероприятий, мероприятий, ведомственных целевых программ, показателей | C6: Единица измерения показателя | D6: Коэффициент значимости | E6: Методика расчета показателя | F6: Сроки реализации | G6: Ответственный исполнитель и соисполнители | H6: Коды бюджетной классификации расходов | K6: Значения по годам реализации
H7: Главный раздел, подраздел | I7: Целевая статья | J7: Вид расходов | K7: 2012 | L7: 2013 | M7: 2014 | N7: 2015 | O7: 2016 | P7: 2017 | Q7: 2018 | R7: 2019 | S7: 2020 | T7: 2021 | U7: 2022 | V7: 2023 | W7: 2024 | X7: 2025 | Y7: Итого
A8: гр.1 | B8: гр.2 | C8: гр.3 | D8: гр.4 | E8: гр.5 | F8: гр.6 | G8: гр.7 | H8: гр.8 | I8: гр.9 | J8: гр.10 | K8: гр.11 | L8: гр.12 | M8: гр.13 | N8: гр.14 | O8: гр.15 | P8: гр.16 | Q8: гр.17 | R8: гр.18 | S8: гр.19 | T8: гр.20 | U8: гр.21 | V8: гр.22 | W8: гр.23 | X8: гр.24 | Y8: гр.25
A9: 1. | B9: Цель "Создание для всех категорий и групп населения условий для занятий физической культурой и массовым спортом, в том числе повышение уровня обеспеченности населения объектами спорта, а также подготовка спортивного резерва и повышение конкурентоспособности российского спорта на международной спортивной арене" | C9: Х | D9: Х | E9: Х | F9: Х | G9: Х | H9: Х | I9: Х | J9: Х | K9: Х | L9: Х | M9: Х | N9: Х | O9: Х | P9: Х | Q9: Х | R9: Х | S9: Х | T9: Х | U9: Х | V9: Х | W9: Х | X9: Х | Y9: Х
B10: финансирование за счет всех источников | C10: тыс.рублей | D10: Х | E10: Х | F10: Х | G10: Х | H10: 0000000 | I10: 000000 | J10: 000 | K10: Х | L10: Х | M10: =M12+M13+M14+M15 -> 383924.8 | N10: 347678.143 | O10: =327616.8 -> 327616.8 | P10: =345838.6 -> 345838.6 | Q10: 412883.1 | R10: 855726.69 | S10: =S12+S13+S14+S15 -> 909201.5 | T10: =T12+T13+T14+T15 -> 1047934.163 | U10: =U12+U13+U14+U15 -> 835883.6 | V10: 911094.57 | W10: =W12+W13+W14+W15 -> 542048.16 | X10: =X12+X13+X14+X15 -> 663015.8 | Y10: =SUM(M10:X10) -> 7582845.926
B11: в т.ч. | C11: Х | D11: Х | E11: Х | F11: Х | G11: Х | H11: Х | I11: Х | J11: Х | K11: Х | L11: Х | M11: Х | N11: Х | O11: Х | P11: Х | Q11: Х | R11: Х | S11: Х | T11: Х | U11: Х | V11: Х | W11: Х | X11: Х | Y11: Х
B12: из краевого бюджета | C12: тыс.рублей | D12: Х | E12: Х | F12: Х | G12: Х | H12: 0000000 | I12: 000000 | J12: 000 | K12: Х | L12: Х | M12: =SUMIFS(M18:M934,I18:I934,"1810000000",B18:B934,B12)+SUMIFS(M18:M934,I18:I934,"1820000000",B18:B934,B12)+SUMIFS(M18:M934,I18:I934,"1830000000",B18:B934,B12)+SUMIFS(M18:M934,I18:I934,"1840000000",B18:B934,B12) -> 376443.9 | N12: =SUMIFS(N18:N934,I18:I934,"1810000000",B18:B934,B12)+SUMIFS(N18:N934,I18:I934,"1820000000",B18:B934,B12)+SUMIFS(N18:N934,I18:I934,"1830000000",B18:B934,B12)+SUMIFS(N18:N934,I18:I934,"1840000000",B18:B934,B12) -> 338703.2 | O12: =SUMIFS(O18:O934,I18:I934,"1810000000",B18:B934,B12)+SUMIFS(O18:O934,I18:I934,"1820000000",B18:B934,B12)+SUMIFS(O18:O934,I18:I934,"1830000000",B18:B934,B12)+SUMIFS(O18:O934,I18:I934,"1840000000",B18:B934,B12) -> 295526.2 | P12: 345838.6 | Q12: =SUMIFS(Q18:Q934,I18:I934,"1810000000",B18:B934,B12)+SUMIFS(Q18:Q934,I18:I934,"1820000000",B18:B934,B12)+SUMIFS(Q18:Q934,I18:I934,"1830000000",B18:B934,B12)+SUMIFS(Q18:Q934,I18:I934,"1840000000",B18:B934,B12) -> 389718.9 | R12: =SUMIFS(R18:R934,I18:I934,"1810000000",B18:B934,B12)+SUMIFS(R18:R934,I18:I934,"1820000000",B18:B934,B12)+SUMIFS(R18:R934,I18:I934,"1830000000",B18:B934,B12)+SUMIFS(R18:R934,I18:I934,"1840000000",B18:B934,B12) -> 472138.69 | S12: =SUMIFS(S18:S934,I18:I934,"1810000000",B18:B934,B12)+SUMIFS(S18:S934,I18:I934,"1820000000",B18:B934,B12)+SUMIFS(S18:S934,I18:I934,"1830000000",B18:B934,B12)+SUMIFS(S18:S934,I18:I934,"1840000000",B18:B934,B12) -> 571668.2 | T12: =SUMIFS(T18:T934,I18:I934,"1810000000",B18:B934,B12)+SUMIFS(T18:T934,I18:I934,"1820000000",B18:B934,B12)+SUMIFS(T18:T934,I18:I934,"1830000000",B18:B934,B12)+SUMIFS(T18:T934,I18:I934,"1840000000",B18:B934,B12) -> 694150.963 | U12: =SUMIFS(U18:U934,I18:I934,"1810000000",B18:B934,B12)+SUMIFS(U18:U934,I18:I934,"1820000000",B18:B934,B12)+SUMIFS(U18:U934,I18:I934,"1830000000",B18:B934,B12)+SUMIFS(U18:U934,I18:I934,"1840000000",B18:B934,B12) -> 661859.4 | V12: =SUMIFS(V18:V934,I18:I934,"1810000000",B18:B934,B12)+SUMIFS(V18:V934,I18:I934,"1820000000",B18:B934,B12)+SUMIFS(V18:V934,I18:I934,"1830000000",B18:B934,B12)+SUMIFS(V18:V934,I18:I934,"1840000000",B18:B934,B12) -> 543894.67 | W12: =SUMIFS(W18:W934,I18:I934,"1810000000",B18:B934,B12)+SUMIFS(W18:W934,I18:I934,"1820000000",B18:B934,B12)+SUMIFS(W18:W934,I18:I934,"1830000000",B18:B934,B12)+SUMIFS(W18:W934,I18:I934,"1840000000",B18:B934,B12) -> 420454.76 | X12: =SUMIFS(X18:X934,I18:I934,"1810000000",B18:B934,B12)+SUMIFS(X18:X934,I18:I934,"1820000000",B18:B934,B12)+SUMIFS(X18:X934,I18:I934,"1830000000",B18:B934,B12)+SUMIFS(X18:X934,I18:I934,"1840000000",B18:B934,B12) -> 532065.8 | Y12: =SUM(M12:X12) -> 5642463.283
B13: из федерального бюджета | C13: тыс.рублей | D13: Х | E13: Х | F13: Х | G13: Х | H13: 0000000 | I13: 000000 | J13: 000 | K13: Х | L13: Х | M13: =SUMIFS(M18:M934,I18:I934,"1810000000",B18:B934,B13)+SUMIFS(M18:M934,I18:I934,"1820000000",B18:B934,B13)+SUMIFS(M18:M934,I18:I934,"1830000000",B18:B934,B13)+SUMIFS(M18:M934,I18:I934,"1840000000",B18:B934,B13) -> 7480.9 | N13: =SUMIFS(N18:N934,I18:I934,"1810000000",B18:B934,B13)+SUMIFS(N18:N934,I18:I934,"1820000000",B18:B934,B13)+SUMIFS(N18:N934,I18:I934,"1830000000",B18:B934,B13)+SUMIFS(N18:N934,I18:I934,"1840000000",B18:B934,B13) -> 8974.943 | O13: =SUMIFS(O18:O934,I18:I934,"1810000000",B18:B934,B13)+SUMIFS(O18:O934,I18:I934,"1820000000",B18:B934,B13)+SUMIFS(O18:O934,I18:I934,"1830000000",B18:B934,B13)+SUMIFS(O18:O934,I18:I934,"1840000000",B18:B934,B13) -> 32090.6 | P13: =SUMIFS(P18:P934,I18:I934,"1810000000",B18:B934,B13)+SUMIFS(P18:P934,I18:I934,"1820000000",B18:B934,B13)+SUMIFS(P18:P934,I18:I934,"1830000000",B18:B934,B13)+SUMIFS(P18:P934,I18:I934,"1840000000",B18:B934,B13) -> 0 | Q13: =SUMIFS(Q18:Q934,I18:I934,"1810000000",B18:B934,B13)+SUMIFS(Q18:Q934,I18:I934,"1820000000",B18:B934,B13)+SUMIFS(Q18:Q934,I18:I934,"1830000000",B18:B934,B13)+SUMIFS(Q18:Q934,I18:I934,"1840000000",B18:B934,B13) -> 23164.2 | R13: =SUMIFS(R18:R934,I18:I934,"1810000000",B18:B934,B13)+SUMIFS(R18:R934,I18:I934,"1820000000",B18:B934,B13)+SUMIFS(R18:R934,I18:I934,"1830000000",B18:B934,B13)+SUMIFS(R18:R934,I18:I934,"1840000000",B18:B934,B13) -> 383588 | S13: =SUMIFS(S18:S934,I18:I934,"1810000000",B18:B934,B13)+SUMIFS(S18:S934,I18:I934,"1820000000",B18:B934,B13)+SUMIFS(S18:S934,I18:I934,"1830000000",B18:B934,B13)+SUMIFS(S18:S934,I18:I934,"1840000000",B18:B934,B13) -> 337533.3 | T13: =SUMIFS(T18:T934,I18:I934,"1810000000",B18:B934,B13)+SUMIFS(T18:T934,I18:I934,"1820000000",B18:B934,B13)+SUMIFS(T18:T934,I18:I934,"1830000000",B18:B934,B13)+SUMIFS(T18:T934,I18:I934,"1840000000",B18:B934,B13) -> 353783.2 | U13: =SUMIFS(U18:U934,I18:I934,"1810000000",B18:B934,B13)+SUMIFS(U18:U934,I18:I934,"1820000000",B18:B934,B13)+SUMIFS(U18:U934,I18:I934,"1830000000",B18:B934,B13)+SUMIFS(U18:U934,I18:I934,"1840000000",B18:B934,B13) -> 174024.2 | V13: =SUMIFS(V18:V934,I18:I934,"1810000000",B18:B934,B13)+SUMIFS(V18:V934,I18:I934,"1820000000",B18:B934,B13)+SUMIFS(V18:V934,I18:I934,"1830000000",B18:B934,B13)+SUMIFS(V18:V934,I18:I934,"1840000000",B18:B934,B13) -> 367199.9 | W13: =SUMIFS(W18:W934,I18:I934,"1810000000",B18:B934,B13)+SUMIFS(W18:W934,I18:I934,"1820000000",B18:B934,B13)+SUMIFS(W18:W934,I18:I934,"1830000000",B18:B934,B13)+SUMIFS(W18:W934,I18:I934,"1840000000",B18:B934,B13) -> 121593.4 | X13: =SUMIFS(X18:X934,I18:I934,"1810000000",B18:B934,B13)+SUMIFS(X18:X934,I18:I934,"1820000000",B18:B934,B13)+SUMIFS(X18:X934,I18:I934,"1830000000",B18:B934,B13)+SUMIFS(X18:X934,I18:I934,"1840000000",B18:B934,B13) -> 130950 | Y13: =SUM(M13:X13) -> 1940382.643
B14: из местных бюджетов | C14: тыс.рублей | D14: Х | E14: Х | F14: Х | G14: Х | H14: 0000000 | I14: 000000 | J14: 000 | K14: Х | L14: Х | M14: 0 | N14: 0 | O14: 0 | P14: =P24+P147+P425 -> 0 | Q14: =Q24+Q147+Q425+Q461 -> 0 | R14: 0 | S14: 0 | T14: 0 | U14: 0 | V14: 0 | W14: 0 | X14: 0 | Y14: =SUM(M14:X14) -> 0
B15: из внебюджетных источников | C15: тыс.рублей | D15: Х | E15: Х | F15: Х | G15: Х | H15: 0000000 | I15: 000000 | J15: 000 | K15: Х | L15: Х | M15: 0 | N15: 0 | O15: 0 | P15: =P25+P148+P426 -> 0 | Q15: 0 | R15: 0 | S15: 0 | T15: 0 | U15: 0 | V15: 0 | W15: 0 | X15: 0 | Y15: =SUM(M15:X15) -> 0
A16: ПЦ 1 | B16: Показатель "Уровень обеспеченности граждан спортивными сооружениями исходя из единовременной пропускной способности" | C16: % | D16: Х | E16: ЕПС = ЕПСфакт/ЕПСнорм х 100, где: ЕПСфакт – единовременная пропускная способность имеющихся спортивных сооружений, в соответствии с данными федерального статистического наблюдения по форме № 1-ФК "Сведения о физической культуре и спорте"; ЕПСнорм – нормативная потребность в объектах спортивной инфраструктуры, исходя из единовременной пропускной способности спортивных сооружений, рассчитанная в соответствии с методическими рекомендациями о применении нормативов и норм при определении потребности субъектов Российской Федерации в объектах физической культуры и спорта, утвержденными приказами Минспорта России от 21 марта 2018 г. № 244 | F16: Х | G16: Х | H16: Х | I16: Х | J16: Х | K16: Х | L16: Х | M16: 40.1 | N16: 38.4 | O16: 36 | P16: 36.5 | Q16: 36.5 | R16: 40 | S16: 39.3 | T16: 40.3 | U16: 49 | V16: 54 | W16: 62.1 | X16: 62.2 | Y16: Х
A17: ПЦ 2 | B17: Показатель «Доля граждан, систематически занимающихся физической культурой и спортом» | C17: % | D17: Х | E17: Дз = Чз/ (Чн – Чнп) х 100, где: Чз – численность населения, занимающегося физической культурой и спортом, в соответствии с данными федерального статистического наблюдения по форме № 1-ФК "Сведения о физической культуре и спорте" (человек); Чн – численность населения по состоянию на 1 января отчетного года (человек). Источник данных – Единая межведомственная информационно-статистическая система; Чнп - численность населения, имеющего противопоказания и ограничения для занятий физической культурой и спортом, согласно формам статистического наблюдения, за отчетный год (человек) | F17: Х | G17: Х | H17: Х | I17: Х | J17: Х | K17: Х | L17: Х | M17: 24 | N17: 27.2 | O17: 28.3 | P17: 30 | Q17: 31.2 | R17: 35.3 | S17: 33.8 | T17: 41.3 | U17: 46 | V17: 50.8 | W17: 55.5 | X17: 55.6 | Y17: Х
B18: Задача "Повышение мотивации граждан к регулярным занятиям физической культурой и спортом и ведению здорового образа жизни" | C18: Х | D18: Х | E18: Х | F18: Х | G18: Х | H18: Х | I18: Х | J18: Х | K18: Х | L18: Х | M18: Х | N18: Х | O18: Х | P18: Х | Q18: Х | R18: Х | S18: Х | T18: Х | U18: Х | V18: Х | W18: Х | X18: Х | Y18: Х
A19: 1 | B19: Подпрограмма "Развитие массового спорта в Забайкальском крае" | C19: Х | D19: =D34 -> 1 | E19: Х | F19: Х | G19: Х | H19: Х | I19: Х | J19: Х | K19: Х | L19: Х | M19: Х | N19: Х | O19: Х | P19: Х | Q19: Х | R19: Х | S19: Х | T19: Х | U19: Х | V19: Х | W19: Х | X19: Х | Y19: Х
B20: финансирование за счет всех источников | C20: тыс.рублей | D20: Х | E20: Х | F20: Х | G20: Х | H20: 0000000 | I20: 1810000000 | J20: Х | K20: Х | L20: Х | M20: =M22+M23+M24+M25 -> 5954.9 | N20: 8343.3 | O20: 6403.7 | P20: 5722.7 | Q20: 10599 | R20: 29527.7 | S20: =S22+S23+S24+S25 -> 30787.5 | T20: 36444.3 | U20: 40000 | V20: 15000 | W20: 15000 | X20: 15000 | Y20: =SUM(M20:X20) -> 218783.1
B21: в т.ч. | C21: Х | D21: Х | E21: Х | F21: Х | G21: Х | H21: Х | I21: Х | J21: Х | K21: Х | L21: Х | M21: Х | N21: Х | O21: Х | P21: Х | Q21: Х | R21: Х | S21: Х | T21: Х | U21: Х | V21: Х | W21: Х | X21: Х | Y21: Х
B22: из краевого бюджета | C22: тыс.рублей | D22: Х | E22: Х | F22: Х | G22: Х | H22: 0000000 | I22: 1810000000 | J22: Х | K22: Х | L22: Х | M22: 5954.9 | N22: 6066.8 | O22: 4582.5 | P22: 5722.7 | Q22: =SUMIFS(Q34:Q1006,I34:I1006,"1810100000",H34:H1006,"0000000",B34:B1006,B22)+SUMIFS(Q34:Q1006,I34:I1006,"181Р500000",H34:H1006,"0000000",B34:B1006,B22) -> 10599 | R22: =SUMIFS(R34:R1006,I34:I1006,"1810100000",H34:H1006,"0000000",B34:B1006,B22)+SUMIFS(R34:R1006,I34:I1006,"181Р500000",H34:H1006,"0000000",B34:B1006,B22) -> 13794.5 | S22: =SUMIFS(S34:S1006,I34:I1006,"1810100000",H34:H1006,"0000000",B34:B1006,B22)+SUMIFS(S34:S1006,I34:I1006,"181Р500000",H34:H1006,"0000000",B34:B1006,B22) -> 11121.7 | T22: =SUMIFS(T34:T1006,I34:I1006,"1810100000",H34:H1006,"0000000",B34:B1006,B22)+SUMIFS(T34:T1006,I34:I1006,"181Р500000",H34:H1006,"0000000",B34:B1006,B22) -> 17733.3 | U22: =SUMIFS(U34:U1006,I34:I1006,"1810100000",H34:H1006,"0000000",B34:B1006,B22)+SUMIFS(U34:U1006,I34:I1006,"181Р500000",H34:H1006,"0000000",B34:B1006,B22) -> 40000 | V22: =SUMIFS(V34:V1006,I34:I1006,"1810100000",H34:H1006,"0000000",B34:B1006,B22)+SUMIFS(V34:V1006,I34:I1006,"181Р500000",H34:H1006,"0000000",B34:B1006,B22) -> 15000 | W22: =SUMIFS(W34:W1006,I34:I1006,"1810100000",H34:H1006,"0000000",B34:B1006,B22)+SUMIFS(W34:W1006,I34:I1006,"181Р500000",H34:H1006,"0000000",B34:B1006,B22) -> 15000 | X22: =SUMIFS(X34:X1006,I34:I1006,"1810100000",H34:H1006,"0000000",B34:B1006,B22)+SUMIFS(X34:X1006,I34:I1006,"181Р500000",H34:H1006,"0000000",B34:B1006,B22) -> 15000 | Y22: =SUM(M22:X22) -> 160575.4
B23: из федерального бюджета | C23: тыс.рублей | D23: Х | E23: Х | F23: Х | G23: Х | H23: 0000000 | I23: 1810000000 | J23: Х | K23: Х | L23: Х | M23: =SUMIFS(M34:M1006,I34:I1006,"1810100000",H34:H1006,"0000000",B34:B1006,B23)+SUMIFS(M34:M1006,I34:I1006,"181Р500000",H34:H1006,"0000000",B34:B1006,B23) -> 0 | N23: 2276.5 | O23: 1821.2 | P23: =SUMIFS(P34:P1006,I34:I1006,"1810100000",H34:H1006,"0000000",B34:B1006,B23)+SUMIFS(P34:P1006,I34:I1006,"181Р500000",H34:H1006,"0000000",B34:B1006,B23) -> 0 | Q23: =SUMIFS(Q34:Q1006,I34:I1006,"1810100000",H34:H1006,"0000000",B34:B1006,B23)+SUMIFS(Q34:Q1006,I34:I1006,"181Р500000",H34:H1006,"0000000",B34:B1006,B23) -> 0 | R23: =SUMIFS(R34:R1006,I34:I1006,"1810100000",H34:H1006,"0000000",B34:B1006,B23)+SUMIFS(R34:R1006,I34:I1006,"181Р500000",H34:H1006,"0000000",B34:B1006,B23) -> 15733.2 | S23: =SUMIFS(S34:S1006,I34:I1006,"1810100000",H34:H1006,"0000000",B34:B1006,B23)+SUMIFS(S34:S1006,I34:I1006,"181Р500000",H34:H1006,"0000000",B34:B1006,B23) -> 19665.8 | T23: =SUMIFS(T34:T1006,I34:I1006,"1810100000",H34:H1006,"0000000",B34:B1006,B23)+SUMIFS(T34:T1006,I34:I1006,"181Р500000",H34:H1006,"0000000",B34:B1006,B23) -> 18711 | U23: =SUMIFS(U34:U1006,I34:I1006,"1810100000",H34:H1006,"0000000",B34:B1006,B23)+SUMIFS(U34:U1006,I34:I1006,"181Р500000",H34:H1006,"0000000",B34:B1006,B23) -> 0 | V23: =SUMIFS(V34:V1006,I34:I1006,"1810100000",H34:H1006,"0000000",B34:B1006,B23)+SUMIFS(V34:V1006,I34:I1006,"181Р500000",H34:H1006,"0000000",B34:B1006,B23) -> 0 | W23: =SUMIFS(W34:W1006,I34:I1006,"1810100000",H34:H1006,"0000000",B34:B1006,B23)+SUMIFS(W34:W1006,I34:I1006,"181Р500000",H34:H1006,"0000000",B34:B1006,B23) -> 0 | X23: =SUMIFS(X34:X1006,I34:I1006,"1810100000",H34:H1006,"0000000",B34:B1006,B23)+SUMIFS(X34:X1006,I34:I1006,"181Р500000",H34:H1006,"0000000",B34:B1006,B23) -> 0 | Y23: =SUM(M23:X23) -> 58207.7
B24: из местных бюджетов | C24: тыс.рублей | D24: Х | E24: Х | F24: Х | G24: Х | H24: 0000000 | I24: 1810000000 | J24: Х | K24: Х | L24: Х | M24: 0 | N24: 0 | O24: 0 | P24: 0 | Q24: 0 | R24: 0 | S24: 0 | T24: 0 | U24: 0 | V24: 0 | W24: 0 | X24: 0 | Y24: =SUM(M24:X24) -> 0
B25: из внебюджетных источников | C25: тыс.рублей | D25: Х | E25: Х | F25: Х | G25: Х | H25: 0000000 | I25: 1810000000 | J25: Х | K25: Х | L25: Х | M25: 0 | N25: 0 | O25: 0 | P25: 0 | Q25: 0 | R25: 0 | S25: 0 | T25: 0 | U25: 0 | V25: 0 | W25: 0 | X25: 0 | Y25: =SUM(M25:X25) -> 0
A26: 1. ПП1 | B26: Показатель "Количество организованных и проведенных физкультурных мероприятий и массовых спортивных мероприятий в Забайкальском крае" | C26: ед. | D26: Х | E26: Абсолютный показатель | F26: Х | G26: Х | H26: Х | I26: Х | J26: Х | K26: Х | L26: Х | M26: Х | N26: Х | O26: Х | P26: Х | Q26: 32 | R26: 32 | S26: 32 | T26: 32 | U26: 32 | V26: 32 | W26: 32 | X26: 32 | Y26: =SUM(Q26:X26) -> 256
A27: 1. ПП2 | B27: Показатель "Доля граждан трудоспособного возраста, систематически занимающихся физической культурой и спортом" | C27: % | D27: Х | E27: Дзд = (Чздс+Чздо)/Чнд х 100, где: Чздс – численность населения в возрасте 3-29 лет, занимающегося физической культурой и спортом в организованной форме занятий, в соответствии с данными федерального статистического наблюдения по форме № 1-ФК "Сведения о физической культуре и спорте"; Чздо - численность населения в возрасте 3-29 лет, самостоятельно занимающегося физической культурой и спортом, в соответствии с данными выборочного наблюдения состояния здоровья; Чнд - численность населения в возрасте 3-29 лет по административной информации Федеральной службы государственной статистики * | F27: Х | G27: Х | H27: Х | I27: Х | J27: Х | K27: Х | L27: Х | M27: Х | N27: Х | O27: Х | P27: Х | Q27: Х | R27: Х | S27: Х | T27: Х | U27: Х | V27: 36.6 | W27: 41.8 | X27: 47 | Y27: Х
A28: 1. ПП3 | B28: Показатель "Доля детей и молодежи (возраст 3-29 лет), систематически занимающихся физической культурой и спортом, в общей численности детей и молодежи" | C28: % | D28: Х | E28: Дзд = (Чздс+Чздо)/Чнд х 100, где: Чздс – численность населения в возрасте 3-29 лет, занимающегося физической культурой и спортом в организованной форме занятий, в соответствии с данными федерального статистического наблюдения по форме № 1-ФК "Сведения о физической культуре и спорте"; Чздо - численность населения в возрасте 3-29 лет, самостоятельно занимающегося физической культурой и спортом, в соответствии с данными выборочного наблюдения состояния здоровья; Чнд - численность населения в возрасте 3-29 лет по административной информации Федеральной службы государственной статистики * | F28: Х | G28: Х | H28: Х | I28: Х | J28: Х | K28: Х | L28: Х | M28: Х | N28: Х | O28: Х | P28: Х | Q28: 66 | R28: 68.5 | S28: 71 | T28: 74 | U28: 78 | V28: Х | W28: Х | X28: Х | Y28: Х
A29: 1. ПП3 | B29: Показатель "Доля граждан в возрасте 3-29 лет, систематически занимающихся физической культурой и спортом, в общей численности граждан данной возрастной категории" | C29: % | D29: Х | E29: Дзд = (Чздс+Чздо)/Чнд х 100, где: Чздс – численность населения в возрасте 3-29 лет, занимающегося физической культурой и спортом в организованной форме занятий, в соответствии с данными федерального статистического наблюдения по форме № 1-ФК "Сведения о физической культуре и спорте"; Чздо - численность населения в возрасте 3-29 лет, самостоятельно занимающегося физической культурой и спортом, в соответствии с данными выборочного наблюдения состояния здоровья; Чнд - численность населения в возрасте 3-29 лет по административной информации Федеральной службы государственной статистики * | F29: Х | G29: Х | H29: Х | I29: Х | J29: Х | K29: Х | L29: Х | M29: Х | N29: Х | O29: Х | P29: Х | Q29: Х | R29: Х | S29: Х | T29: Х | U29: Х | V29: 87.3 | W29: 87.3 | X29: 87.3 | Y29: Х
A30: 1. ПП4 | B30: Показатель «Доля граждан среднего возраста (женщины: 30-54 года; мужчины: 30-59 лет), систематически занимающихся физической культурой и спортом, в общей численности граждан среднего возраста» | C30: % | D30: Х | E30: Дзс = (Чзсс+Чзсо)/Чнс х 100, где: Чзсс - численность населения в возрасте: женщины: 30-54 года; мужчины: 30-59 лет, занимающегося физической культурой и спортом в организованной форме занятий, в соответствии с данными федерального статистического наблюдения по форме № 1-ФК "Сведения о физической культуре и спорте"; Чзсо - численность населения в возрасте: женщины: 30-54 года; мужчины: 30-59 лет, самостоятельно занимающегося физической культурой и спортом, в соответствии с данными выборочного наблюдения состояния здоровья; Чнс - численность населения в возрасте: женщины: 30-54 года; мужчины: 30-59 лет по административной информации Федеральной службы государственной статистики | F30: Х | G30: Х | H30: Х | I30: Х | J30: Х | K30: Х | L30: Х | M30: Х | N30: Х | O30: Х | P30: Х | Q30: 13.5 | R30: 17.5 | S30: 22.5 | T30: 27.5 | U30: 32.5 | V30: Х | W30: Х | X30: Х | Y30: Х
A31: 1. ПП4 | B31: Показатель "Доля граждан в возрасте от 30 до 54 года включительно (женщины) и до 59 лет включительно (мужчины), систематически занимающихся физической культурой и спортом, в общей численности граждан данной возрастной категории" | C31: % | D31: Х | E31: Дзс = (Чзсс+Чзсо)/Чнс х 100, где: Чзсс - численность населения в возрасте: женщины: 30-54 года; мужчины: 30-59 лет, занимающегося физической культурой и спортом в организованной форме занятий, в соответствии с данными федерального статистического наблюдения по форме № 1-ФК "Сведения о физической культуре и спорте"; Чзсо - численность населения в возрасте: женщины: 30-54 года; мужчины: 30-59 лет, самостоятельно занимающегося физической культурой и спортом, в соответствии с данными выборочного наблюдения состояния здоровья; Чнс - численность населения в возрасте: женщины: 30-54 года; мужчины: 30-59 лет по административной информации Федеральной службы государственной статистики | F31: Х | G31: Х | H31: Х | I31: Х | J31: Х | K31: Х | L31: Х | M31: Х | N31: Х | O31: Х | P31: Х | Q31: Х | R31: Х | S31: Х | T31: Х | U31: Х | V31: 45.9 | W31: 52.5 | X31: 55.5 | Y31: Х
A32: 1.ПП5 | B32: Показатель «Доля граждан старшего возраста (женщины: 55-79 лет; мужчины: 60-79 лет), систематически занимающихся физической культурой и спортом в общей численности граждан старшего возраста» | C32: % | D32: Х | E32: Дзп = (Чзпс+Чзпо)/Чнп х 100, где: Чзпс - численность населения в возрасте: женщины: 55-79 лет; мужчины: 60-79 лет, занимающегося физической культурой и спортом в организованной форме занятий, в соответствии с данными федерального статистического наблюдения по форме № 1-ФК "Сведения о физической культуре и спорте"; Чзпо - численность населения в возрасте: женщины: 55-79 лет; мужчины: 60-79 лет, самостоятельно занимающегося физической культурой и спортом, в соответствии с данными выборочного наблюдения состояния здоровья; Чнп - численность населения в возрасте: женщины: 55-79 лет; мужчины: 60-79 лет по административной информации Федеральной службы государственной статистики | F32: Х | G32: Х | H32: Х | I32: Х | J32: Х | K32: Х | L32: Х | M32: Х | N32: Х | O32: Х | P32: Х | Q32: 2 | R32: 3.5 | S32: 5 | T32: 6.5 | U32: 8 | V32: Х | W32: Х | X32: Х | Y32: Х
A33: 1.ПП5 | B33: Показатель "Доля граждан в возрасте от 55 лет (женщины) и от 60 лет (мужчины) до 79 лет включительно, систематически занимающихся физической культурой и спортом, в общей численности граждан данной возрастной категории" | C33: % | D33: Х | E33: Дзп = (Чзпс+Чзпо)/Чнп х 100, где: Чзпс - численность населения в возрасте: женщины: 55-79 лет; мужчины: 60-79 лет, занимающегося физической культурой и спортом в организованной форме занятий, в соответствии с данными федерального статистического наблюдения по форме № 1-ФК "Сведения о физической культуре и спорте"; Чзпо - численность населения в возрасте: женщины: 55-79 лет; мужчины: 60-79 лет, самостоятельно занимающегося физической культурой и спортом, в соответствии с данными выборочного наблюдения состояния здоровья; Чнп - численность населения в возрасте: женщины: 55-79 лет; мужчины: 60-79 лет по административной информации Федеральной службы государственной статистики | F33: Х | G33: Х | H33: Х | I33: Х | J33: Х | K33: Х | L33: Х | M33: Х | N33: Х | O33: Х | P33: Х | Q33: Х | R33: Х | S33: Х | T33: Х | U33: Х | V33: 18.2 | W33: 22.5 | X33: 26.4 | Y33: Х
A34: 1.1 | B34: Основное мероприятие 1 "Физическое воспитание и обеспечение организации и проведения физкультурных и массовых спортивных мероприятий" | C34: Х | D34: 1 | E34: Х | F34: 2014 - 2025 | G34: Министерство физической культуры и спорта Забайкальского края | H34: Х | I34: Х | J34: Х | K34: Х | L34: Х | M34: Х | N34: Х | O34: Х | P34: Х | Q34: Х | R34: Х | S34: Х | T34: Х | U34: Х | V34: Х | W34: Х | X34: Х | Y34: Х
B35: финансирование за счет всех источников | C35: тыс.рублей | D35: Х | E35: Х | F35: Х | G35: Х | H35: 0000000 | I35: 1810100000 | J35: 000 | K35: Х | L35: Х | M35: =SUM(M36:M38) -> 5954.9 | N35: 8343.3 | O35: 6403.7 | P35: 5722.7 | Q35: 10599 | R35: 15892.1 | S35: 30787.5 | T35: 36444.3 | U35: 40000 | V35: 15000 | W35: 15000 | X35: =SUM(X36:X38) -> 15000 | Y35: =SUM(M35:X35) -> 205147.5
B36: в т.ч. | C36: Х | D36: Х | E36: Х | F36: Х | G36: Х | H36: Х | I36: Х | J36: Х | K36: Х | L36: Х | M36: Х | N36: Х | O36: Х | P36: Х | Q36: Х | R36: Х | S36: Х | T36: Х | U36: Х | V36: Х | W36: Х | X36: Х | Y36: Х
B37: из краевого бюджета | C37: тыс.рублей | D37: Х | E37: Х | F37: Х | G37: Х | H37: 0000000 | I37: 1810100000 | J37: 000 | K37: Х | L37: Х | M37: =SUMIFS(M44:M1006,B44:B1006,"финансирование за счет краевого бюджета",I44:I1006,"1810100000") -> 5954.9 | N37: =SUMIFS(N44:N1006,B44:B1006,"финансирование за счет краевого бюджета",I44:I1006,"1810100000") -> 6066.8 | O37: =SUMIFS(O44:O1006,B44:B1006,"финансирование за счет краевого бюджета",I44:I1006,"1810100000") -> 4582.5 | P37: =SUMIFS(P44:P1006,B44:B1006,"финансирование за счет краевого бюджета",I44:I1006,"1810100000") -> 5722.7 | Q37: =SUMIFS(Q44:Q1006,B44:B1006,"финансирование за счет краевого бюджета",I44:I1006,"1810100000") -> 10599 | R37: =SUMIFS(R44:R1006,B44:B1006,"финансирование за счет краевого бюджета",I44:I1006,"1810100000") -> 158.9 | S37: =SUMIFS(S44:S1006,B44:B1006,"финансирование за счет краевого бюджета",I44:I1006,"1810100000") -> 11121.7 | T37: =SUMIFS(T44:T1006,B44:B1006,"финансирование за счет краевого бюджета",I44:I1006,"1810100000") -> 17733.3 | U37: =SUMIFS(U44:U1006,B44:B1006,"финансирование за счет краевого бюджета",I44:I1006,"1810100000") -> 40000 | V37: =SUMIFS(V44:V1006,B44:B1006,"финансирование за счет краевого бюджета",I44:I1006,"1810100000") -> 15000 | W37: =SUMIFS(W44:W1006,B44:B1006,"финансирование за счет краевого бюджета",I44:I1006,"1810100000") -> 15000 | X37: =SUMIFS(X44:X1006,B44:B1006,"финансирование за счет краевого бюджета",I44:I1006,"1810100000") -> 15000 | Y37: =SUM(M37:X37) -> 146939.8
B38: из федерального бюджета | C38: тыс.рублей | D38: Х | E38: Х | F38: Х | G38: Х | H38: 0000000 | I38: 1810100000 | J38: 000 | K38: Х | L38: Х | M38: =SUMIFS(M44:M1006,B44:B1006,"финансирование за счет федерального бюджета",I44:I1006,"1810100000") -> 0 | N38: =SUMIFS(N44:N1006,B44:B1006,"финансирование за счет федерального бюджета",I44:I1006,"1810100000") -> 2276.5 | O38: =SUMIFS(O44:O1006,B44:B1006,"финансирование за счет федерального бюджета",I44:I1006,"1810100000") -> 1821.2 | P38: =SUMIFS(P44:P1006,B44:B1006,"финансирование за счет федерального бюджета",I44:I1006,"1810100000") -> 0 | Q38: =SUMIFS(Q44:Q1006,B44:B1006,"финансирование за счет федерального бюджета",I44:I1006,"1810100000") -> 0 | R38: =SUMIFS(R44:R1006,B44:B1006,"финансирование за счет федерального бюджета",I44:I1006,"1810100000") -> 15733.2 | S38: =SUMIFS(S44:S1006,B44:B1006,"финансирование за счет федерального бюджета",I44:I1006,"1810100000") -> 19665.8 | T38: =SUMIFS(T44:T1006,B44:B1006,"финансирование за счет федерального бюджета",I44:I1006,"1810100000") -> 18711 | U38: =SUMIFS(U44:U1006,B44:B1006,"финансирование за счет федерального бюджета",I44:I1006,"1810100000") -> 0 | V38: =SUMIFS(V44:V1006,B44:B1006,"финансирование за счет федерального бюджета",I44:I1006,"1810100000") -> 0 | W38: =SUMIFS(W44:W1006,B44:B1006,"финансирование за счет федерального бюджета",I44:I1006,"1810100000") -> 0 | X38: =SUMIFS(X44:X1006,B44:B1006,"финансирование за счет федерального бюджета",I44:I1006,"1810100000") -> 0 | Y38: =SUM(M38:X38) -> 58207.7
B39: из местных бюджетов | C39: тыс.рублей | D39: Х | E39: Х | F39: Х | G39: Х | H39: Х | I39: Х | J39: Х | K39: Х | L39: Х | M39: 0 | N39: 0 | O39: 0 | P39: 0 | Q39: 0 | R39: 0 | S39: 0 | T39: 0 | U39: 0 | V39: 0 | W39: 0 | X39: 0 | Y39: =SUM(M39:X39) -> 0
B40: из внебюджетных источников | C40: тыс.рублей | D40: Х | E40: Х | F40: Х | G40: Х | H40: Х | I40: Х | J40: Х | K40: Х | L40: Х | M40: 0 | N40: 0 | O40: 0 | P40: 0 | Q40: 0 | R40: 0 | S40: 0 | T40: 0 | U40: 0 | V40: 0 | W40: 0 | X40: 0 | Y40: =SUM(M40:X40) -> 0
A41: 1.1 ПОМ 1 | B41: Показатель "Доля потребителей, удовлетворенных качеством проведенных физкультурно-массовых мероприятий" | C41: % | D41: Х | E41: А/В х 100 %, где: А - количество опрошенных потребителей, удовлетворенных качеством проведенных физкультурно-массовых мероприятий, В - общее количество опрошенных граждан, принявших участие в физкультурно-массовых мероприятиях | F41: х | G41: х | H41: х | I41: х | J41: х | K41: х | L41: х | M41: 65 | N41: 70 | O41: 72 | P41: 74 | Q41: 77 | R41: 80 | S41: 85 | T41: 85 | U41: 90 | V41: 90 | W41: 93 | X41: 93 | Y41: Х
A42: 1.1 ПОМ 2 | B42: Показатель "Доля населения, занятого в экономике, занимающегося физической культурой и спортом, в общей численности населения, занятого в экономике" | C42: % | D42: Х | E42: Дт=Чзт/Чнт*100, где: Дт - доля населения, занятого в экономике, Чзт - численность населения, занятого в экономике, занимающегося физической культурой и спортом, согласно данным федерального стат.наблюдения по форме 1-ФК, Чнт - численность населения, занятого в экономике, по данным Забайкалкрайстата | F42: Х | G42: Х | H42: Х | I42: Х | J42: Х | K42: Х | L42: Х | M42: 13.5 | N42: 15.8 | O42: 16.5 | P42: 18.5 | Q42: 18 | R42: 18.6 | S42: 19 | T42: 0 | U42: 0 | V42: 0 | W42: 0 | X42: 0 | Y42: Х
A43: 1.1.1 | B43: Мероприятие 1 "Вовлечение населения в занятия физической культурой и массовым спортом" | C43: Х | D43: Х | E43: Х | F43: 2014 - 2025 | G43: Министерство физической культуры и спорта Забайкальского края | H43: Х | I43: Х | J43: Х | K43: Х | L43: Х | M43: Х | N43: Х | O43: Х | P43: Х | Q43: Х | R43: Х | S43: Х | T43: Х | U43: Х | V43: Х | W43: Х | X43: Х | Y43: Х
B44: финансирование за счет всех источников | C44: тыс.рублей | D44: Х | E44: Х | F44: Х | G44: Х | H44: 0110000 | I44: 1810100000 | J44: 000 | K44: Х | L44: Х | M44: =M46+M47 -> 5954.9 | N44: =N46+N47 -> 8343.3 | O44: 6403.7 | P44: 4352.7 | Q44: 10599 | R44: 0 | S44: =S46+S47 -> 5447 | T44: 17544.3 | U44: 40000 | V44: 15000 | W44: 15000 | X44: 15000 | Y44: =SUM(M44:X44) -> 143644.9
B45: в т.ч. | C45: Х | D45: Х | E45: Х | F45: Х | G45: Х | H45: Х | I45: Х | J45: Х | K45: Х | L45: Х | M45: Х | N45: Х | O45: Х | P45: Х | Q45: Х | R45: Х | S45: Х | T45: Х | U45: Х | V45: Х | W45: Х | X45: Х | Y45: Х
B46: финансирование за счет федерального бюджета | C46: тыс.рублей | D46: Х | E46: Х | F46: Х | G46: Х | H46: 0110000 | I46: 1810100000 | J46: 000 | K46: Х | L46: Х | M46: =SUMIFS(M49:M53,B49:B53,B46) -> 0 | N46: =SUMIFS(N49:N53,B49:B53,B46) -> 2276.5 | O46: =SUMIFS(O49:O53,B49:B53,B46) -> 1821.2 | P46: =SUMIFS(P49:P53,B49:B53,B46) -> 0 | Q46: =SUMIFS(Q49:Q53,B49:B53,B46) -> 0 | R46: =SUMIFS(R49:R53,B49:B53,B46) -> 0 | S46: =SUMIFS(S49:S53,B49:B53,B46) -> 0 | T46: =SUMIFS(T49:T53,B49:B53,B46) -> 0 | U46: =SUMIFS(U49:U53,B49:B53,B46) -> 0 | V46: =SUMIFS(V49:V53,B49:B53,B46) -> 0 | W46: =SUMIFS(W49:W53,B49:B53,B46) -> 0 | X46: =SUMIFS(X49:X53,C49:C53,B46) -> 0 | Y46: =SUM(M46:X46) -> 4097.7
B47: финансирование за счет краевого бюджета | C47: тыс.рублей | D47: Х | E47: Х | F47: Х | G47: Х | H47: 0110000 | I47: 1810100000 | J47: 000 | K47: Х | L47: Х | M47: =SUMIFS(M49:M53,B49:B53,B47) -> 5954.9 | N47: =SUMIFS(N49:N53,B49:B53,B47) -> 6066.8 | O47: =SUMIFS(O49:O53,B49:B53,B47) -> 4582.5 | P47: =SUMIFS(P49:P53,B49:B53,B47) -> 4352.7 | Q47: =SUMIFS(Q49:Q53,B49:B53,B47) -> 10599 | R47: =SUMIFS(R49:R53,B49:B53,B47) -> 0 | S47: =SUMIFS(S49:S53,B49:B53,B47) -> 5447 | T47: =SUMIFS(T49:T53,B49:B53,B47) -> 17544.3 | U47: =SUMIFS(U49:U53,B49:B53,B47) -> 40000 | V47: =SUMIFS(V49:V53,B49:B53,B47) -> 15000 | W47: =SUMIFS(W49:W53,B49:B53,B47) -> 15000 | X47: =SUMIFS(X49:X53,B49:B53,B47) -> 15000 | Y47: =SUM(M47:X47) -> 139547.2
C48: Х | D48: Х | E48: Х | F48: Х | G48: Х | H48: Х | I48: Х | J48: Х | K48: Х | L48: Х | M48: Х | N48: Х | O48: Х | P48: Х | Q48: Х | R48: Х | S48: Х | T48: Х | U48: Х | V48: Х | W48: Х | X48: Х | Y48: Х
B49: финансирование за счет краевого бюджета | C49: тыс.рублей | D49: Х | E49: Х | F49: Х | G49: Х | H49: 0111102 | I49: 1810103512 | J49: 240 | K49: Х | L49: Х | M49: 5954.9 | N49: 6066.8 | O49: 4486.7 | P49: =1050+1486.2+121 -> 2657.2 | Q49: 6475 | R49: 0 | S49: 2597 | T49: 42.5 | U49: 25000 | V49: 0 | W49: 0 | X49: 0 | Y49: =SUM(M49:X49) -> 53280.1
B50: финансирование за счет краевого бюджета | C50: тыс.рублей | D50: Х | E50: Х | F50: Х | G50: Х | H50: 0111102 | I50: 1810103512 | J50: 610 | K50: Х | L50: Х | M50: 0 | N50: 0 | O50: 0 | P50: 1695.5 | Q50: 3124 | R50: =1579-1579 -> 0 | S50: 2850 | T50: 7999.6 | U50: 5990 | V50: 5000 | W50: 5000 | X50: 5000 | Y50: =SUM(M50:X50) -> 36659.1
B51: финансирование за счет краевого бюджета | C51: тыс.рублей | D51: Х | E51: Х | F51: Х | G51: Х | H51: 0111102 | I51: 1810103512 | J51: 630 | K51: Х | L51: Х | M51: 0 | N51: 0 | O51: 0 | P51: 0 | Q51: 1000 | R51: 0 | S51: 0 | T51: 9502.2 | U51: 9010 | V51: 10000 | W51: 10000 | X51: 10000 | Y51: =SUM(M51:X51) -> 49512.2
B52: финансирование за счет федерального бюджета | C52: тыс.рублей | D52: Х | E52: Х | F52: Х | G52: Х | H52: 0111102 | I52: 1810151270 | J52: 240 | K52: Х | L52: Х | M52: 0 | N52: 2276.5 | O52: 1821.2 | P52: 0 | Q52: 0 | R52: 0 | S52: 0 | T52: 0 | U52: 0 | V52: 0 | W52: 0 | X52: 0 | Y52: =SUM(M52:X52) -> 4097.7
B53: финансирование за счет краевого бюджета | C53: тыс.рублей | D53: Х | E53: Х | F53: Х | G53: Х | H53: 0111102 | I53: 18101R1270 | J53: 240 | K53: Х | L53: Х | M53: 0 | N53: 0 | O53: 95.8 | P53: 0 | Q53: 0 | R53: 0 | S53: 0 | T53: 0 | U53: 0 | V53: 0 | W53: 0 | X53: 0 | Y53: =SUM(M53:X53) -> 95.8
A54: 1.1.1 ПМ 1 | B54: Показатель "Доля лиц с ограниченными возможностями здоровья и инвалидов, систематически занимающихся физической культурой и спортом, в общей численности указанной категории населения (2014 - 2020 гг.)" | C54: % | D54: Х | E54: Ди=Чзи/(Чни-Чнп) х 100, где: Ди - доля лиц с ограниченными возможностями здоровья и инвалидов, систематически занимающихся физической культурой и спортом, Чзи - численность лиц с ограниченными возможностями здоровья и инвалидов согласно данным федерального стат.наблюдения по форме 3-АФК, Чни - численность населения с ограниченными возможностями здоровья и инвалидов, по данным отделения ПФР по Забайкальскому краю, Чнп - численность инвалидов, которые имеют противопоказания для занятий физической культурой и спортом (форма № 30) | F54: Х | G54: Х | H54: Х | I54: Х | J54: Х | K54: Х | L54: Х | M54: 6.7 | N54: 7.2 | O54: 7.3 | P54: 8.5 | Q54: 11.8 | R54: 12.9 | S54: 17.1 | T54: Х | U54: Х | V54: Х | W54: Х | X54: Х | Y54: Х
A55: 1.1.1 ПМ 2 | B55: Показатель "Доля лиц с ограниченными возможностями здоровья и инвалидов, систематически занимающихся физической культурой и спортом, в общей численности указанной категории населения, не имеющего противопоказаний для занятий физической культурой и спортом" | C55: % | D55: Х | E55: Ди=Чзи/(Чни-Чнп) х 100, где: Ди - доля лиц с ограниченными возможностями здоровья и инвалидов, систематически занимающихся физической культурой и спортом, Чзи - численность лиц с ограниченными возможностями здоровья и инвалидов согласно данным федерального стат.наблюдения по форме 3-АФК, Чни - численность населения с ограниченными возможностями здоровья и инвалидов, по данным отделения ПФР по Забайкальскому краю, Чнп - численность инвалидов, которые имеют противопоказания для занятий физической культурой и спортом (форма № 30) | F55: Х | G55: Х | H55: Х | I55: Х | J55: Х | K55: Х | L55: Х | M55: Х | N55: Х | O55: Х | P55: Х | Q55: Х | R55: Х | S55: Х | T55: Х | U55: Х | V55: 18.6 | W55: 19.1 | X55: 20.6 | Y55: Х
A56: 1.1.1 ПМ 3 | B56: Показатель "Доля сельского населения, систематически занимающегося физической культурой и спортом, в общей численности сельского населения Забайкальского края в возрасте от 3 до 79 лет" | C56: % | D56: Х | E56: Дс=Чзс/Чс х 100, где: Дс - доля сельского населения, занимающегося физической культурой и спортом, Чзс - численность сельского населения, занимающегося физической культурой и спортом согласно данным федерального стат.наблюдения по форме 1-ФК, Чс - численность сельского населения Забайкальского края в возрасте от 3 до 79 лет по данным Забайкалкрайстата | F56: Х | G56: Х | H56: Х | I56: Х | J56: Х | K56: Х | L56: Х | M56: Х | N56: Х | O56: Х | P56: Х | Q56: 22.6 | R56: 22.7 | S56: 23 | T56: 23.5 | U56: 23.8 | V56: Х | W56: Х | X56: Х | Y56: Х
A57: 1.1.1 ПМ 4 | B57: Показатель "Доля сельского населения, систематически занимающегося физической культурой и спортом" | C57: % | D57: Х | E57: Дс=Чзс/Чс х 100, где: Дс - доля сельского населения, занимающегося физической культурой и спортом, Чзс - численность сельского населения, занимающегося физической культурой и спортом согласно данным федерального стат.наблюдения по форме 1-ФК, Чс - численность сельского населения Забайкальского края в возрасте от 3 до 79 лет по данным Забайкалкрайстата | F57: Х | G57: Х | H57: Х | I57: Х | J57: Х | K57: Х | L57: Х | M57: Х | N57: Х | O57: Х | P57: Х | Q57: Х | R57: Х | S57: Х | T57: Х | U57: Х | V57: 40.9 | W57: 46 | X57: 48.3 | Y57: Х
A58: 1.1.1 ПМ 5 | B58: Показатель "Количество информационных сюжетов, направленных на пропаганду физической культуры и спорта" | C58: ед. | D58: Х | E58: Абсолютный показатель (согласно представленным данным от телевизионных СМИ) | F58: Х | G58: Х | H58: Х | I58: Х | J58: Х | K58: Х | L58: Х | M58: 70 | N58: 80 | O58: 90 | P58: 100 | Q58: 110 | R58: 115 | S58: 120 | T58: 125 | U58: 130 | V58: 135 | W58: 140 | X58: 140 | Y58: =SUM(M58:X58) -> 1355
A59: 1.1.2 | B59: Мероприятие 2 "Внедрение и реализация Всероссийского физкультурно-спортивного комплекса "Готов к труду и обороне" (ГТО)" | C59: Х | D59: Х | E59: Х | F59: 2014-2025 | G59: Министерство физической культуры и спорта Забайкальского края | H59: Х | I59: Х | J59: Х | K59: Х | L59: Х | M59: Х | N59: Х | O59: Х | P59: Х | Q59: Х | R59: Х | S59: Х | T59: Х | U59: Х | V59: Х | W59: Х | X59: Х | Y59: Х
B60: финансирование за счет всех источников | C60: тыс.рублей | D60: Х | E60: Х | F60: Х | G60: Х | H60: 0110000 | I60: 1810100000 | J60: 000 | K60: Х | L60: Х | M60: =M62+M63 -> 0 | N60: 0 | O60: 0 | P60: 860 | Q60: 0 | R60: 0 | S60: =S62+S63 -> 0 | T60: 0 | U60: 0 | V60: 0 | W60: 0 | X60: 0 | Y60: =SUM(M60:X60) -> 860
B61: в т.ч. | C61: Х | D61: Х | E61: Х | F61: Х | G61: Х | H61: Х | I61: Х | J61: Х | K61: Х | L61: Х | M61: Х | N61: Х | O61: Х | P61: Х | Q61: Х | R61: Х | S61: Х | T61: Х | U61: Х | V61: Х | W61: Х | X61: Х | Y61: Х
B62: финансирование за счет федерального бюджета | C62: тыс.рублей | D62: Х | E62: Х | F62: Х | G62: Х | H62: 0110000 | I62: 1810100000 | J62: 000 | K62: Х | L62: Х | M62: =SUMIFS(M64:M67,B64:B67,B62) -> 0 | N62: =SUMIFS(N64:N67,B64:B67,B62) -> 0 | O62: =SUMIFS(O64:O67,B64:B67,B62) -> 0 | P62: =SUMIFS(P64:P67,B64:B67,B62) -> 0 | Q62: =SUMIFS(Q64:Q67,B64:B67,B62) -> 0 | R62: =SUMIFS(R64:R67,B64:B67,B62) -> 0 | S62: =SUMIFS(S64:S67,B64:B67,B62) -> 0 | T62: =SUMIFS(T64:T67,B64:B67,B62) -> 0 | U62: =SUMIFS(U64:U67,B64:B67,B62) -> 0 | V62: =SUMIFS(V64:V67,B64:B67,B62) -> 0 | W62: =SUMIFS(W64:W67,B64:B67,B62) -> 0 | X62: =SUMIFS(X64:X67,B64:B67,B62) -> 0 | Y62: =SUM(M62:X62) -> 0
B63: финансирование за счет краевого бюджета | C63: тыс.рублей | D63: Х | E63: Х | F63: Х | G63: Х | H63: 0110000 | I63: 1810100000 | J63: 000 | K63: Х | L63: Х | M63: =SUMIFS(M65:M67,B65:B67,B63) -> 0 | N63: =SUMIFS(N65:N67,B65:B67,B63) -> 0 | O63: =SUMIFS(O65:O67,B65:B67,B63) -> 0 | P63: =SUMIFS(P65:P67,B65:B67,B63) -> 860 | Q63: =SUMIFS(Q65:Q67,B65:B67,B63) -> 0 | R63: =SUMIFS(R65:R67,B65:B67,B63) -> 0 | S63: =SUMIFS(S65:S67,B65:B67,B63) -> 0 | T63: =SUMIFS(T65:T67,B65:B67,B63) -> 0 | U63: =SUMIFS(U65:U67,B65:B67,B63) -> 0 | V63: =SUMIFS(V65:V67,B65:B67,B63) -> 0 | W63: =SUMIFS(W65:W67,B65:B67,B63) -> 0 | X63: =SUMIFS(X65:X67,B65:B67,B63) -> 0 | Y63: =SUM(M63:X63) -> 860
C64: Х | D64: Х | E64: Х | F64: Х | G64: Х | H64: Х | I64: Х | J64: Х | K64: Х | L64: Х | M64: Х | N64: Х | O64: Х | P64: Х | Q64: Х | R64: Х | S64: Х | T64: Х | U64: Х | V64: Х | W64: Х | X64: Х | Y64: Х
B65: финансирование за счет краевого бюджета | C65: тыс.рублей | D65: Х | E65: Х | F65: Х | G65: Х | H65: 0111102 | I65: 1810103512 | J65: 240 | K65: Х | L65: Х | M65: 0 | N65: 0 | O65: 0 | P65: 860 | Q65: 0 | R65: 0 | S65: 0 | T65: 0 | U65: 0 | V65: 0 | W65: 0 | X65: 0 | Y65: =SUM(M65:X65) -> 860
B66: финансирование за счет федерального бюджета | C66: тыс.рублей | D66: Х | E66: Х | F66: Х | G66: Х | H66: 0111102 | I66: 1810151270 | J66: 240 | K66: Х | L66: Х | M66: 0 | N66: 0 | O66: 0 | P66: 0 | Q66: 0 | R66: 0 | S66: 0 | T66: 0 | U66: 0 | V66: 0 | W66: 0 | X66: 0 | Y66: =SUM(M66:X66) -> 0
B67: финансирование за счет краевого бюджета | C67: тыс.рублей | D67: Х | E67: Х | F67: Х | G67: Х | H67: 0111102 | I67: 18101R1270 | J67: 240 | K67: Х | L67: Х | M67: 0 | N67: 0 | O67: 0 | P67: 0 | Q67: 0 | R67: 0 | S67: 0 | T67: 0 | U67: 0 | V67: 0 | W67: 0 | X67: 0 | Y67: =SUM(M67:X67) -> 0
A68: 1.1.2 ПМ 1 | B68: Показатель "Доля населения, выполнившего нормативы испытаний (тестов) ВФСК "Готов к труду и обороне" (ГТО), в общей численности населения, принявшего участие в выполнении нормативов испытаний (тестов) ВФСК "Готов к труду и обороне" (ГТО)" | C68: % | D68: Х | E68: Двн=Чвн/Чуч*100, где: Двн - доля населения выполнившего нормативы, Чвн - численность, выполнивших нормативы испытаний (тестов), согласно данным федерального стат.наблюдения 2-ГТО, Чуч - численность населения, принявшего участие в сдаче нормативов испытаний (тестов) согласно данным годовой формы федерального стат.наблюдения № 2-ГТО | F68: Х | G68: Х | H68: Х | I68: Х | J68: Х | K68: Х | L68: Х | M68: Х | N68: Х | O68: Х | P68: 31 | Q68: 71.2 | R68: 72 | S68: 73 | T68: 74 | U68: 75 | V68: 76 | W68: 77 | X68: 77 | Y68: Х
B69: из них учащихся и студентов | C69: % | D69: Х | E69: Двну=Чус/Чуч*100, где: Двну - доля учащихся и студентов, выполнивших нормативы испытаний (тестов) 1-6 ступеней, согласно данным федерального стат.наблюдения 2-ГТО , Чуч - численность населения, принявшего участие в сдаче нормативов испытаний (тестов) 1-6 ступеней, согласно данным годовой формы федерального стат.наблюдения № 2-ГТО | F69: Х | G69: Х | H69: Х | I69: Х | J69: Х | K69: Х | L69: Х | M69: Х | N69: Х | O69: Х | P69: Х | Q69: 71.3 | R69: 71.5 | S69: 72 | T69: 72.5 | U69: 73 | V69: 73.5 | W69: 74 | X69: 74 | Y69: Х
A70: 1.1.3 | B70: Мероприятие 3 "Развитие студенческого спорта" | C70: Х | D70: Х | E70: Х | F70: 2014-2025 | G70: Министерство физической культуры и спорта Забайкальского края | H70: Х | I70: Х | J70: Х | K70: Х | L70: Х | M70: Х | N70: Х | O70: Х | P70: Х | Q70: Х | R70: Х | S70: Х | T70: Х | U70: Х | V70: Х | W70: Х | X70: Х | Y70: Х
B71: финансирование за счет всех источников | C71: тыс.рублей | D71: Х | E71: Х | F71: Х | G71: Х | H71: 0110000 | I71: 1810100000 | J71: 000 | K71: Х | L71: Х | M71: =M73+M74 -> 0 | N71: 0 | O71: 0 | P71: 0 | Q71: 0 | R71: 0 | S71: 0 | T71: 0 | U71: 0 | V71: 0 | W71: 0 | X71: =X73+X74 -> 0 | Y71: =SUM(M71:X71) -> 0
B72: в т.ч. | C72: Х | D72: Х | E72: Х | F72: Х | G72: Х | H72: Х | I72: Х | J72: Х | K72: Х | L72: Х | M72: Х | N72: Х | O72: Х | P72: Х | Q72: Х | R72: Х | S72: Х | T72: Х | U72: Х | V72: Х | W72: Х | X72: Х | Y72: Х
B73: финансирование за счет федерального бюджета | C73: тыс.рублей | D73: Х | E73: Х | F73: Х | G73: Х | H73: 0110000 | I73: 1810100000 | J73: 000 | K73: Х | L73: Х | M73: =SUMIFS(M76:M78,B76:B78,B73) -> 0 | N73: =SUMIFS(N76:N78,B76:B78,B73) -> 0 | O73: =SUMIFS(O76:O78,B76:B78,B73) -> 0 | P73: =SUMIFS(P76:P78,B76:B78,B73) -> 0 | Q73: =SUMIFS(Q76:Q78,B76:B78,B73) -> 0 | R73: =SUMIFS(R76:R78,B76:B78,B73) -> 0 | S73: =SUMIFS(S76:S78,B76:B78,B73) -> 0 | T73: =SUMIFS(T76:T78,B76:B78,B73) -> 0 | U73: =SUMIFS(U76:U78,B76:B78,B73) -> 0 | V73: =SUMIFS(V76:V78,B76:B78,B73) -> 0 | W73: =SUMIFS(W76:W78,B76:B78,B73) -> 0 | X73: =SUMIFS(X76:X78,B76:B78,B73) -> 0 | Y73: =SUM(M73:X73) -> 0
B74: финансирование за счет краевого бюджета | C74: тыс.рублей | D74: Х | E74: Х | F74: Х | G74: Х | H74: 0110000 | I74: 1810100000 | J74: 000 | K74: Х | L74: Х | M74: =SUMIFS(M76:M78,B76:B78,B74) -> 0 | N74: =SUMIFS(N76:N78,B76:B78,B74) -> 0 | O74: =SUMIFS(O76:O78,B76:B78,B74) -> 0 | P74: =SUMIFS(P76:P78,B76:B78,B74) -> 0 | Q74: =SUMIFS(Q76:Q78,B76:B78,B74) -> 0 | R74: =SUMIFS(R76:R78,B76:B78,B74) -> 0 | S74: =SUMIFS(S76:S78,B76:B78,B74) -> 0 | T74: =SUMIFS(T76:T78,B76:B78,B74) -> 0 | U74: =SUMIFS(U76:U78,B76:B78,B74) -> 0 | V74: =SUMIFS(V76:V78,B76:B78,B74) -> 0 | W74: =SUMIFS(W76:W78,B76:B78,B74) -> 0 | X74: =SUMIFS(X76:X78,B76:B78,B74) -> 0 | Y74: =SUM(M74:X74) -> 0
C75: Х | D75: Х | E75: Х | F75: Х | G75: Х | H75: Х | I75: Х | J75: Х | K75: Х | L75: Х | M75: Х | N75: Х | O75: Х | P75: Х | Q75: Х | R75: Х | S75: Х | T75: Х | U75: Х | V75: Х | W75: Х | X75: Х | Y75: Х
B76: финансирование за счет краевого бюджета | C76: тыс.рублей | D76: Х | E76: Х | F76: Х | G76: Х | H76: 0111102 | I76: 1810103512 | J76: 240 | K76: Х | L76: Х | M76: 0 | N76: 0 | O76: 0 | P76: 0 | Q76: 0 | R76: 0 | S76: 0 | T76: 0 | U76: 0 | V76: 0 | W76: 0 | X76: 0 | Y76: =SUM(M76:X76) -> 0
B77: финансирование за счет федерального бюджета | C77: тыс.рублей | D77: Х | E77: Х | F77: Х | G77: Х | H77: 0111102 | I77: 1810151270 | J77: 240 | K77: Х | L77: Х | M77: 0 | N77: 0 | O77: 0 | P77: 0 | Q77: 0 | R77: 0 | S77: 0 | T77: 0 | U77: 0 | V77: 0 | W77: 0 | X77: 0 | Y77: =SUM(M77:X77) -> 0
B78: финансирование за счет краевого бюджета | C78: тыс.рублей | D78: Х | E78: Х | F78: Х | G78: Х | H78: 0111102 | I78: 18101R1270 | J78: 240 | K78: Х | L78: Х | M78: 0 | N78: 0 | O78: 0 | P78: 0 | Q78: 0 | R78: 0 | S78: 0 | T78: 0 | U78: 0 | V78: 0 | W78: 0 | X78: 0 | Y78: =SUM(M78:X78) -> 0
A79: 1.1.3 ПМ 1 | B79: Показатель "Доля учащихся и студентов, систематически занимающихся физической культурой и спортом, в общей численности учащихся и студентов (2014-2018 гг.)" | C79: % | D79: Х | E79: Дс=Чз/Чн*100, где: Дс - доля учащихся и студентов, Чз - численность занимающихся физической культурой и спортом в возрасте 6-29 лет, согласно данным федерального стат.наблюдения по форме 1-ФК, Чн - численность населения в возрасте от 6 до 29 лет по данным Забайкалкрайстата | F79: Х | G79: Х | H79: Х | I79: Х | J79: Х | K79: Х | L79: Х | M79: 55.2 | N79: 60 | O79: 79.7 | P79: 68 | Q79: 70 | R79: Х | S79: Х | T79: Х | U79: Х | V79: Х | W79: Х | X79: Х | Y79: Х
A80: 1.1.4 | B80: Мероприятие 4 "Приобретение и установка уличных тренажерных комплексов (в рамках Плана социального развития центров экономического роста Забайкальского края)" | C80: Х | D80: Х | E80: Х | F80: 2019-2021 | G80: Министерство физической культуры и спорта Забайкальского края | H80: Х | I80: Х | J80: Х | K80: Х | L80: Х | M80: Х | N80: Х | O80: Х | P80: Х | Q80: Х | R80: Х | S80: Х | T80: Х | U80: Х | V80: Х | W80: Х | X80: Х | Y80: Х
B81: финансирование за счет всех источников | C81: тыс.рублей | D81: Х | E81: Х | F81: Х | G81: Х | H81: 0110000 | I81: 1810100000 | J81: 000 | K81: Х | L81: Х | M81: =M83+M84 -> 0 | N81: 0 | O81: 0 | P81: 0 | Q81: 0 | R81: 15892.1 | S81: =S83+S84 -> 19840.5 | T81: 18900 | U81: 0 | V81: 0 | W81: 0 | X81: 0 | Y81: =SUM(M81:X81) -> 54632.6
B82: в т.ч. | C82: Х | D82: Х | E82: Х | F82: Х | G82: Х | H82: Х | I82: Х | J82: Х | K82: Х | L82: Х | M82: Х | N82: Х | O82: Х | P82: Х | Q82: Х | R82: Х | S82: Х | T82: Х | U82: Х | V82: Х | W82: Х | X82: Х | Y82: Х
B83: финансирование за счет федерального бюджета | C83: тыс.рублей | D83: Х | E83: Х | F83: Х | G83: Х | H83: 0110000 | I83: 1810100000 | J83: 000 | K83: Х | L83: Х | M83: =SUMIFS(M86:M87,B86:B87,B83) -> 0 | N83: =SUMIFS(N86:N87,B86:B87,B83) -> 0 | O83: =SUMIFS(O86:O87,B86:B87,B83) -> 0 | P83: =SUMIFS(P86:P87,B86:B87,B83) -> 0 | Q83: =SUMIFS(Q86:Q87,B86:B87,B83) -> 0 | R83: =SUMIFS(R86:R87,B86:B87,B83) -> 15733.2 | S83: =SUMIFS(S86:S87,B86:B87,B83) -> 19665.8 | T83: =SUMIFS(T86:T89,B86:B89,B83) -> 18711 | U83: =SUMIFS(U86:U87,B86:B87,B83) -> 0 | V83: =SUMIFS(V86:V87,B86:B87,B83) -> 0 | W83: =SUMIFS(W86:W87,B86:B87,B83) -> 0 | X83: =SUMIFS(X86:X87,B86:B87,B83) -> 0 | Y83: =SUM(M83:X83) -> 54110
B84: финансирование за счет краевого бюджета | C84: тыс.рублей | D84: Х | E84: Х | F84: Х | G84: Х | H84: 0110000 | I84: 1810100000 | J84: 000 | K84: Х | L84: Х | M84: =SUMIFS(M86:M87,B86:B87,B84) -> 0 | N84: =SUMIFS(N86:N87,B86:B87,B84) -> 0 | O84: =SUMIFS(O86:O87,B86:B87,B84) -> 0 | P84: =SUMIFS(P86:P87,B86:B87,B84) -> 0 | Q84: =SUMIFS(Q86:Q87,B86:B87,B84) -> 0 | R84: =SUMIFS(R86:R87,B86:B87,B84) -> 158.9 | S84: =SUMIFS(S86:S87,B86:B87,B84) -> 174.7 | T84: =SUMIFS(T86:T89,B86:B89,B84) -> 189 | U84: =SUMIFS(U86:U87,B86:B87,B84) -> 0 | V84: =SUMIFS(V86:V87,B86:B87,B84) -> 0 | W84: =SUMIFS(W86:W87,B86:B87,B84) -> 0 | X84: =SUMIFS(X86:X87,B86:B87,B84) -> 0 | Y84: =SUM(M84:X84) -> 522.6
G85: Х | H85: Х | I85: Х | J85: Х | K85: Х | L85: Х | M85: Х | N85: Х | O85: Х | P85: Х | Q85: Х | R85: Х | S85: Х | T85: Х | U85: Х | V85: Х | W85: Х | X85: Х | Y85: Х
B86: финансирование за счет федерального бюджета | C86: тыс.рублей | D86: Х | E86: Х | F86: Х | G86: Х | H86: 0111102 | I86: 1810155054 | J86: 240 | K86: Х | L86: Х | M86: 0 | N86: 0 | O86: 0 | P86: 0 | Q86: 0 | R86: 15733.2 | S86: 19665.8 | T86: 0 | U86: 0 | V86: 0 | W86: 0 | X86: 0 | Y86: =SUM(M86:X86) -> 35399
B87: финансирование за счет краевого бюджета | C87: тыс.рублей | D87: Х | E87: Х | F87: Х | G87: Х | H87: 0111102 | I87: 18101Ц5054 | J87: 240 | K87: Х | L87: Х | M87: 0 | N87: 0 | O87: 0 | P87: 0 | Q87: 0 | R87: 158.9 | S87: 174.7 | T87: 0 | U87: 0 | V87: 0 | W87: 0 | X87: 0 | Y87: =SUM(M87:X87) -> 333.6
B88: финансирование за счет федерального бюджета | C88: тыс.рублей | D88: Х | E88: Х | F88: Х | G88: Х | H88: 0111102 | I88: 1810155050 | J88: 240 | K88: Х | L88: Х | M88: 0 | N88: 0 | O88: 0 | P88: 0 | Q88: 0 | R88: 0 | S88: 0 | T88: 18711 | U88: 0 | V88: 0 | W88: 0 | X88: 0 | Y88: =SUM(M88:X88) -> 18711
B89: финансирование за счет краевого бюджета | C89: тыс.рублей | D89: Х | E89: Х | F89: Х | G89: Х | H89: 0111102 | I89: 18101Ц5050 | J89: 240 | K89: Х | L89: Х | M89: 0 | N89: 0 | O89: 0 | P89: 0 | Q89: 0 | R89: 0 | S89: 0 | T89: 189 | U89: 0 | V89: 0 | W89: 0 | X89: 0 | Y89: =SUM(M89:X89) -> 189
A90: 1.1.4 ПМ 1 | B90: Показатель "Количество приобретенных и установленных тренажерных комплексов" | C90: ед. | D90: Х | E90: Абсолютный показатель | F90: Х | G90: Х | H90: Х | I90: Х | J90: Х | K90: Х | L90: Х | M90: Х | N90: Х | O90: Х | P90: Х | Q90: Х | R90: 34 | S90: 41 | T90: 32 | U90: Х | V90: Х | W90: Х | X90: Х | Y90: Х
A91: 1.1.5 | B91: Мероприятие 5 "Поддержка создания и деятельности социально ориентированных некоммерческих организаций, оказывающих услуги в области физической культуры и спорта" | C91: Х | D91: Х | E91: Х | F91: 2014-2025 | G91: Министерство физической культуры и спорта Забайкальского края | H91: Х | I91: Х | J91: Х | K91: Х | L91: Х | M91: Х | N91: Х | O91: Х | P91: Х | Q91: Х | R91: Х | S91: Х | T91: Х | U91: Х | V91: Х | W91: Х | X91: Х | Y91: Х
B92: финансирование за счет всех источников | C92: тыс.рублей | D92: Х | E92: Х | F92: Х | G92: Х | H92: 0110000 | I92: 1810100000 | J92: 000 | K92: Х | L92: Х | M92: =SUM(M97:M98) -> 0 | N92: 0 | O92: 0 | P92: 0 | Q92: 0 | R92: 0 | S92: 0 | T92: 0 | U92: 0 | V92: 0 | W92: 0 | X92: =SUM(X97:X98) -> 0 | Y92: =SUM(P92:X92) -> 0
B93: в т.ч. | C93: Х | D93: Х | E93: Х | F93: Х | G93: Х | H93: Х | I93: Х | J93: Х | K93: Х | L93: Х | M93: Х | N93: Х | O93: Х | P93: Х | Q93: Х | R93: Х | S93: Х | T93: Х | U93: Х | V93: Х | W93: Х | X93: Х | Y93: Х
B94: финансирование за счет федерального бюджета | C94: тыс.рублей | D94: Х | E94: Х | F94: Х | G94: Х | H94: 0110000 | I94: 1810100000 | J94: 000 | K94: Х | L94: Х | M94: =SUMIFS(M97:M98,B97:B98,B94) -> 0 | N94: =SUMIFS(N97:N98,B97:B98,B94) -> 0 | O94: =SUMIFS(O97:O98,B97:B98,B94) -> 0 | P94: =SUMIFS(P97:P98,B97:B98,B94) -> 0 | Q94: =SUMIFS(Q97:Q98,B97:B98,B94) -> 0 | R94: =SUMIFS(R97:R98,B97:B98,B94) -> 0 | S94: =SUMIFS(S97:S98,B97:B98,B94) -> 0 | T94: =SUMIFS(T97:T98,B97:B98,B94) -> 0 | U94: =SUMIFS(U97:U98,B97:B98,B94) -> 0 | V94: =SUMIFS(V97:V98,B97:B98,B94) -> 0 | W94: =SUMIFS(W97:W98,B97:B98,B94) -> 0 | X94: =SUMIFS(X97:X98,B97:B98,B94) -> 0 | Y94: =SUM(M94:X94) -> 0
B95: финансирование за счет краевого бюджета | C95: тыс.рублей | D95: Х | E95: Х | F95: Х | G95: Х | H95: 0110000 | I95: 1810100000 | J95: 000 | K95: Х | L95: Х | M95: =SUMIFS(M97:M98,B97:B98,B95) -> 0 | N95: =SUMIFS(N97:N98,B97:B98,B95) -> 0 | O95: =SUMIFS(O97:O98,B97:B98,B95) -> 0 | P95: =SUMIFS(P97:P98,B97:B98,B95) -> 0 | Q95: =SUMIFS(Q97:Q98,B97:B98,B95) -> 0 | R95: =SUMIFS(R97:R98,B97:B98,B95) -> 0 | S95: =SUMIFS(S97:S98,B97:B98,B95) -> 0 | T95: =SUMIFS(T97:T98,B97:B98,B95) -> 0 | U95: =SUMIFS(U97:U98,B97:B98,B95) -> 0 | V95: =SUMIFS(V97:V98,B97:B98,B95) -> 0 | W95: =SUMIFS(W97:W98,B97:B98,B95) -> 0 | X95: =SUMIFS(X97:X98,B97:B98,B95) -> 0 | Y95: =SUM(M95:X95) -> 0
C96: Х | D96: Х | E96: Х | F96: Х | G96: Х | H96: Х | I96: Х | J96: Х | K96: Х | L96: Х | M96: Х | N96: Х | O96: Х | P96: Х | Q96: Х | R96: Х | S96: Х | T96: Х | U96: Х | V96: Х | W96: Х | X96: Х | Y96: Х
B97: финансирование за счет краевого бюджета | C97: тыс.рублей | D97: Х | E97: Х | F97: Х | G97: Х | H97: 0111102 | I97: 1810103512 | J97: 630 | K97: Х | L97: Х | M97: 0 | N97: 0 | O97: 0 | P97: 0 | Q97: 0 | R97: 0 | S97: 0 | T97: 0 | U97: 0 | V97: 0 | W97: 0 | X97: 0 | Y97: =SUM(P97:X97) -> 0
B98: финансирование за счет федерального бюджета | C98: тыс.рублей | D98: Х | E98: Х | F98: Х | G98: Х | H98: 0111102 | I98: 1810103512 | J98: 630 | K98: Х | L98: Х | M98: 0 | N98: 0 | O98: 0 | P98: 0 | Q98: 0 | R98: 0 | S98: 0 | T98: 0 | U98: 0 | V98: 0 | W98: 0 | X98: 0 | Y98: =SUM(P98:X98) -> 0
A99: 1.1.5 ПМ 1 | B99: Показатель "Удельный вес социально ориентированных некоммерческих организаций, оказывающих услуги в области физической культуры и спорта, от общего количества организаций, оказывающих услуги в области физической культуры и спорта" | C99: % | D99: Х | E99: УВнкофкс=Чнкофкс х 100 %/Чобщ, где: Увнкофкс - удельный вес социально-ориентированных некоммерческих организаций, оказывающих услуги в области физической культуры и спорта, Чнкофкс - численность социально-ориентированных некоммерческих организаций, оказывающих услуги в области физической культуры и спорта, Чобщ - общее количество организаций, оказывающих услуги в области физической культуры и спорта | F99: Х | G99: Х | H99: Х | I99: Х | J99: Х | K99: Х | L99: Х | M99: Х | N99: Х | O99: Х | P99: Х | Q99: 2.5 | R99: 3 | S99: 3.1 | T99: 3.2 | U99: 3.3 | V99: 3.4 | W99: 3.5 | X99: 3.5 | Y99: Х
A100: 1.1.6 | B100: Мероприятие 6 "Предоставление субсидий из бюджета Забайкальского края на оказание финансовой поддержки социально ориентированным некоммерческим организациям, оказывающим услуги в области физической культуры и спорта" | C100: Х | D100: Х | E100: Х | F100: 2014-2025 | G100: Министерство физической культуры и спорта Забайкальского края | H100: Х | I100: Х | J100: Х | K100: Х | L100: Х | M100: Х | N100: Х | O100: Х | P100: Х | Q100: Х | R100: Х | S100: Х | T100: Х | U100: Х | V100: Х | W100: Х | X100: Х | Y100: Х
B102: финансирование за счет всех источников | C102: тыс.рублей | D102: Х | E102: Х | F102: Х | G102: Х | H102: 0110000 | I102: 1810100000 | J102: 000 | K102: Х | L102: Х | M102: =SUM(M107:M108) -> 0 | N102: 0 | O102: 0 | P102: 510 | Q102: 0 | R102: 0 | S102: 5500 | T102: 0 | U102: 0 | V102: 0 | W102: 0 | X102: =SUM(X107:X108) -> 0 | Y102: =SUM(P102:X102) -> 6010
B103: в т.ч. | C103: Х | D103: Х | E103: Х | F103: Х | G103: Х | H103: Х | I103: Х | J103: Х | K103: Х | L103: Х | M103: Х | N103: Х | O103: Х | P103: Х | Q103: Х | R103: Х | S103: Х | T103: Х | U103: Х | V103: Х | W103: Х | X103: Х | Y103: Х
B104: финансирование за счет федерального бюджета | C104: тыс.рублей | D104: Х | E104: Х | F104: Х | G104: Х | H104: 0110000 | I104: 1810100000 | J104: 000 | K104: Х | L104: Х | M104: =SUMIFS(M107:M108,B107:B108,B104) -> 0 | N104: =SUMIFS(N107:N108,B107:B108,B104) -> 0 | O104: =SUMIFS(O107:O108,B107:B108,B104) -> 0 | P104: =SUMIFS(P107:P108,B107:B108,B104) -> 0 | Q104: =SUMIFS(Q107:Q108,B107:B108,B104) -> 0 | R104: =SUMIFS(R107:R108,B107:B108,B104) -> 0 | S104: =SUMIFS(S107:S108,B107:B108,B104) -> 0 | T104: =SUMIFS(T107:T108,B107:B108,B104) -> 0 | U104: =SUMIFS(U107:U108,B107:B108,B104) -> 0 | V104: =SUMIFS(V107:V108,B107:B108,B104) -> 0 | W104: =SUMIFS(W107:W108,B107:B108,B104) -> 0 | X104: =SUMIFS(X107:X108,B107:B108,B104) -> 0 | Y104: =SUM(M104:X104) -> 0
B105: финансирование за счет краевого бюджета | C105: тыс.рублей | D105: Х | E105: Х | F105: Х | G105: Х | H105: 0110000 | I105: 1810100000 | J105: 000 | K105: Х | L105: Х | M105: =SUMIFS(M107:M108,B107:B108,B105) -> 0 | N105: =SUMIFS(N107:N108,B107:B108,B105) -> 0 | O105: =SUMIFS(O107:O108,B107:B108,B105) -> 0 | P105: =SUMIFS(P107:P108,B107:B108,B105) -> 510 | Q105: =SUMIFS(Q107:Q108,B107:B108,B105) -> 0 | R105: =SUMIFS(R107:R108,B107:B108,B105) -> 0 | S105: =SUMIFS(S107:S108,B107:B108,B105) -> 5500 | T105: =SUMIFS(T107:T108,B107:B108,B105) -> 0 | U105: =SUMIFS(U107:U108,B107:B108,B105) -> 0 | V105: =SUMIFS(V107:V108,B107:B108,B105) -> 0 | W105: =SUMIFS(W107:W108,B107:B108,B105) -> 0 | X105: =SUMIFS(X107:X108,B107:B108,B105) -> 0 | Y105: =SUM(M105:X105) -> 6010
C106: Х | D106: Х | E106: Х | F106: Х | G106: Х | H106: Х | I106: Х | J106: Х | K106: Х | L106: Х | M106: Х | N106: Х | O106: Х | P106: Х | Q106: Х | R106: Х | S106: Х | T106: Х | U106: Х | V106: Х | W106: Х | X106: Х | Y106: Х
B107: финансирование за счет краевого бюджета | C107: тыс.рублей | D107: Х | E107: Х | F107: Х | G107: Х | H107: 0111102 | I107: 1810103512 | J107: 630 | K107: Х | L107: Х | M107: 0 | N107: 0 | O107: 0 | P107: 510 | Q107: 0 | R107: 0 | S107: 5500 | T107: 0 | U107: 0 | V107: 0 | W107: 0 | X107: 0 | Y107: =SUM(P107:X107) -> 6010
B108: финансирование за счет федерального бюджета | C108: тыс.рублей | D108: Х | E108: Х | F108: Х | G108: Х | H108: 0111102 | I108: 1810103512 | J108: 630 | K108: Х | L108: Х | M108: 0 | N108: 0 | O108: 0 | P108: 0 | Q108: 0 | R108: 0 | S108: 0 | T108: 0 | U108: 0 | V108: 0 | W108: 0 | X108: 0 | Y108: =SUM(P108:X108) -> 0
A109: 1.1.6 ПМ 1 | B109: Показатель "Количество официальных физкультурных (физкультурно-оздоровительных) мероприятий, организованных социально ориентированными некоммерческими организациями" | C109: ед. | D109: Х | E109: Абсолютный показатель | F109: Х | G109: Х | H109: Х | I109: Х | J109: Х | K109: Х | L109: Х | M109: Х | N109: Х | O109: Х | P109: 6 | Q109: 6 | R109: 7 | S109: 10 | T109: 12 | U109: 15 | V109: 17 | W109: 20 | X109: 20 | Y109: =SUM(P109:X109) -> 113
A110: 1.1.7 | B110: Мероприятие 7 "Предоставление субсидий из бюджета Забайкальского края общественным объединениям, осуществляющим развитие физической культуры и массового спорта в Забайкальском крае" | C110: Х | D110: Х | E110: Х | F110: 2014 - 2025 | G110: Министерство физической культуры и спорта Забайкальского края | H110: Х | I110: Х | J110: Х | K110: Х | L110: Х | M110: Х | N110: Х | O110: Х | P110: Х | Q110: Х | R110: Х | S110: Х | T110: Х | U110: Х | V110: Х | W110: Х | X110: Х | Y110: Х
B111: финансирование за счет всех источников | C111: тыс.рублей | D111: Х | E111: Х | F111: Х | G111: Х | H111: 0110000 | I111: 1810100000 | J111: 000 | K111: Х | L111: Х | M111: =SUM(M116:M117) -> 0 | N111: 0 | O111: 0 | P111: 0 | Q111: 0 | R111: 0 | S111: 0 | T111: 0 | U111: 0 | V111: 0 | W111: 0 | X111: =SUM(X116:X117) -> 0 | Y111: =SUM(P111:X111) -> 0
B112: в т.ч. | C112: Х | D112: Х | E112: Х | F112: Х | G112: Х | H112: Х | I112: Х | J112: Х | K112: Х | L112: Х | M112: Х | N112: Х | O112: Х | P112: Х | Q112: Х | R112: Х | S112: Х | T112: Х | U112: Х | V112: Х | W112: Х | X112: Х | Y112: Х
B113: финансирование за счет федерального бюджета | C113: тыс.рублей | D113: Х | E113: Х | F113: Х | G113: Х | H113: 0110000 | I113: 1810100000 | J113: 000 | K113: Х | L113: Х | M113: =SUMIFS(M116:M117,B116:B117,B113) -> 0 | N113: =SUMIFS(N116:N117,B116:B117,B113) -> 0 | O113: =SUMIFS(O116:O117,B116:B117,B113) -> 0 | P113: =SUMIFS(P116:P117,B116:B117,B113) -> 0 | Q113: =SUMIFS(Q116:Q117,B116:B117,B113) -> 0 | R113: =SUMIFS(R116:R117,B116:B117,B113) -> 0 | S113: =SUMIFS(S116:S117,B116:B117,B113) -> 0 | T113: =SUMIFS(T116:T117,B116:B117,B113) -> 0 | U113: =SUMIFS(U116:U117,B116:B117,B113) -> 0 | V113: =SUMIFS(V116:V117,B116:B117,B113) -> 0 | W113: =SUMIFS(W116:W117,B116:B117,B113) -> 0 | X113: =SUMIFS(X116:X117,B116:B117,B113) -> 0 | Y113: =SUM(M113:X113) -> 0
B114: финансирование за счет краевого бюджета | C114: тыс.рублей | D114: Х | E114: Х | F114: Х | G114: Х | H114: 0110000 | I114: 1810100000 | J114: 000 | K114: Х | L114: Х | M114: =SUMIFS(M116:M117,B116:B117,B114) -> 0 | N114: =SUMIFS(N116:N117,B116:B117,B114) -> 0 | O114: =SUMIFS(O116:O117,B116:B117,B114) -> 0 | P114: =SUMIFS(P116:P117,B116:B117,B114) -> 0 | Q114: =SUMIFS(Q116:Q117,B116:B117,B114) -> 0 | R114: =SUMIFS(R116:R117,B116:B117,B114) -> 0 | S114: =SUMIFS(S116:S117,B116:B117,B114) -> 0 | T114: =SUMIFS(T116:T117,B116:B117,B114) -> 0 | U114: =SUMIFS(U116:U117,B116:B117,B114) -> 0 | V114: =SUMIFS(V116:V117,B116:B117,B114) -> 0 | W114: =SUMIFS(W116:W117,B116:B117,B114) -> 0 | X114: =SUMIFS(X116:X117,B116:B117,B114) -> 0 | Y114: =SUM(M114:X114) -> 0
C115: Х | D115: Х | E115: Х | F115: Х | G115: Х | H115: Х | I115: Х | J115: Х | K115: Х | L115: Х | M115: Х | N115: Х | O115: Х | P115: Х | Q115: Х | R115: Х | S115: Х | T115: Х | U115: Х | V115: Х | W115: Х | X115: Х | Y115: Х
B116: финансирование за счет краевого бюджета | C116: тыс.рублей | D116: Х | E116: Х | F116: Х | G116: Х | H116: 0111102 | I116: 1810103512 | J116: 630 | K116: Х | L116: Х | M116: 0 | N116: 0 | O116: 0 | P116: 0 | Q116: 0 | R116: 0 | S116: 0 | T116: 0 | U116: 0 | V116: 0 | W116: 0 | X116: 0 | Y116: =SUM(P116:X116) -> 0
B117: финансирование за счет федерального бюджета | C117: тыс.рублей | D117: Х | E117: Х | F117: Х | G117: Х | H117: 0111102 | I117: 1810103512 | J117: 630 | K117: Х | L117: Х | M117: 0 | N117: 0 | O117: 0 | P117: 0 | Q117: 0 | R117: 0 | S117: 0 | T117: 0 | U117: 0 | V117: 0 | W117: 0 | X117: 0 | Y117: =SUM(P117:X117) -> 0
A118: 1.1.7 ПМ 1 | B118: Показатель "Количество несовершеннолетних, вовлеченных в занятия физической культурой и массовым спортом" | C118: чел. | D118: Х | E118: Абсолютный показатель | F118: Х | G118: Х | H118: Х | I118: Х | J118: Х | K118: Х | L118: Х | M118: Х | N118: Х | O118: Х | P118: Х | Q118: Х | R118: Х | S118: Х | T118: 1000 | U118: Х | V118: Х | W118: Х | X118: Х | Y118: =SUM(P118:X118) -> 1000
A119: 1.1.8 | B119: Мероприятие 8 "Предоставление субсидий из бюджета Забайкальского края физкультурно-спортивным организациям на возмещение недополученных доходов, возникших при предоставлении ими физкультурно-оздоровительных услуг граждан пенсионного возраста" | C119: Х | D119: Х | E119: Х | F119: 2014-2025 | G119: Министерство физической культуры и спорта Забайкальского края | H119: Х | I119: Х | J119: Х | K119: Х | L119: Х | M119: Х | N119: Х | O119: Х | P119: Х | Q119: Х | R119: Х | S119: Х | T119: Х | U119: Х | V119: Х | W119: Х | X119: Х | Y119: Х
B120: финансирование за счет всех источников | C120: тыс.рублей | D120: Х | E120: Х | F120: Х | G120: Х | H120: 0110000 | I120: 1810100000 | J120: 000 | K120: Х | L120: Х | M120: Х | N120: Х | O120: Х | P120: Х | Q120: Х | R120: Х | S120: Х | T120: Х | U120: Х | V120: Х | W120: Х | X120: Х | Y120: Х
B121: в т.ч. | C121: Х | D121: Х | E121: Х | F121: Х | G121: Х | H121: Х | I121: Х | J121: Х | K121: Х | L121: Х | M121: Х | N121: Х | O121: Х | P121: Х | Q121: Х | R121: Х | S121: Х | T121: Х | U121: Х | V121: Х | W121: Х | X121: Х | Y121: Х
B122: финансирование за счет федерального бюджета | C122: тыс.рублей | D122: Х | E122: Х | F122: Х | G122: Х | H122: 0110000 | I122: 1810100000 | J122: 000 | K122: Х | L122: Х | M122: Х | N122: Х | O122: Х | P122: Х | Q122: Х | R122: Х | S122: Х | T122: Х | U122: Х | V122: Х | W122: Х | X122: Х | Y122: Х
B123: финансирование за счет краевого бюджета | C123: тыс.рублей | D123: Х | E123: Х | F123: Х | G123: Х | H123: 0110000 | I123: 1810100000 | J123: 000 | K123: Х | L123: Х | M123: Х | N123: Х | O123: Х | P123: Х | Q123: Х | R123: Х | S123: Х | T123: Х | U123: Х | V123: Х | W123: Х | X123: Х | Y123: Х
A124: 1.1.8 ПМ 1 | B124: Показатель "Количество граждан пенсионного возраста, получивших физкультурно-оздоровительные услуги" | C124: чел. | D124: Х | E124: Абсолютный показатель | F124: Х | G124: Х | H124: Х | I124: Х | J124: Х | K124: Х | L124: Х | M124: Х | N124: Х | O124: Х | P124: Х | Q124: Х | R124: Х | S124: Х | T124: 300 | U124: Х | V124: Х | W124: Х | X124: Х | Y124: =SUM(P124:X124) -> 300
A125: 1.2. | B125: Основное мероприятие 2 "Региональный проект "Создание для всех категорий и групп населения условий для занятий физической культурой и спортом, массовым спортом, в том числе повышение уровня обеспеченности населения объектами спорта, а также подготовка спортивного резерва (Забайкальский край)" | C125: Х | D125: Х | E125: Х | F125: 2019-2025 | G125: Министерство физической культуры и спорта Забайкальского края | H125: Х | I125: Х | J125: Х | K125: Х | L125: Х | M125: Х | N125: Х | O125: Х | P125: Х | Q125: Х | R125: Х | S125: Х | T125: Х | U125: Х | V125: Х | W125: Х | X125: Х | Y125: Х
B126: финансирование за счет всех источников | C126: тыс.рублей | D126: Х | E126: Х | F126: Х | G126: Х | H126: 0000000 | I126: 181Р500000 | J126: 000 | K126: Х | L126: Х | M126: =M128+M129 -> 0 | N126: 0 | O126: 0 | P126: 0 | Q126: 0 | R126: 13635.6 | S126: =S128+S129 -> 0 | T126: 0 | U126: 0 | V126: 0 | W126: 0 | X126: 0 | Y126: =SUM(M126:X126) -> 13635.6
B127: в т.ч. | C127: Х | D127: Х | E127: Х | F127: Х | G127: Х | H127: Х | I127: Х | J127: Х | K127: Х | L127: Х | M127: Х | N127: Х | O127: Х | P127: Х | Q127: Х | R127: Х | S127: Х | T127: Х | U127: Х | V127: Х | W127: Х | X127: Х | Y127: Х
B128: из краевого бюджета | C128: тыс.рублей | D128: Х | E128: Х | F128: Х | G128: Х | H128: 0000000 | I128: 181Р500000 | J128: 000 | K128: Х | L128: Х | M128: =SUMIFS(M130:M1006,I130:I1006,"181Р500000",B130:B1006,"финансирование за счет краевого бюджета") -> 0 | N128: =SUMIFS(N130:N1006,I130:I1006,"181Р500000",B130:B1006,"финансирование за счет краевого бюджета") -> 0 | O128: =SUMIFS(O130:O1006,I130:I1006,"181Р500000",B130:B1006,"финансирование за счет краевого бюджета") -> 0 | P128: =SUMIFS(P130:P1006,I130:I1006,"181Р500000",B130:B1006,"финансирование за счет краевого бюджета") -> 0 | Q128: =SUMIFS(Q130:Q1006,I130:I1006,"181Р500000",B130:B1006,"финансирование за счет краевого бюджета") -> 0 | R128: =SUMIFS(R130:R1006,I130:I1006,"181Р500000",B130:B1006,"финансирование за счет краевого бюджета") -> 13635.6 | S128: =SUMIFS(S130:S1006,I130:I1006,"181Р500000",B130:B1006,"финансирование за счет краевого бюджета") -> 0 | T128: =SUMIFS(T130:T1006,I130:I1006,"181Р500000",B130:B1006,"финансирование за счет краевого бюджета") -> 0 | U128: =SUMIFS(U130:U1006,I130:I1006,"181Р500000",B130:B1006,"финансирование за счет краевого бюджета") -> 0 | V128: =SUMIFS(V130:V1006,I130:I1006,"181Р500000",B130:B1006,"финансирование за счет краевого бюджета") -> 0 | W128: =SUMIFS(W130:W1006,I130:I1006,"181Р500000",B130:B1006,"финансирование за счет краевого бюджета") -> 0 | X128: =SUMIFS(X130:X1006,I130:I1006,"181Р500000",B130:B1006,"финансирование за счет краевого бюджета") -> 0 | Y128: =SUM(M128:X128) -> 13635.6
B129: из федерального бюджета | C129: тыс.рублей | D129: Х | E129: Х | F129: Х | G129: Х | H129: 0000000 | I129: 181Р500000 | J129: 000 | K129: Х | L129: Х | M129: =SUMIFS(M130:M1006,I130:I1006,"181Р500000",B130:B1006,"финансирование за счет федерального бюджета") -> 0 | N129: =SUMIFS(N130:N1006,I130:I1006,"181Р500000",B130:B1006,"финансирование за счет федерального бюджета") -> 0 | O129: =SUMIFS(O130:O1006,I130:I1006,"181Р500000",B130:B1006,"финансирование за счет федерального бюджета") -> 0 | P129: =SUMIFS(P130:P1006,I130:I1006,"181Р500000",B130:B1006,"финансирование за счет федерального бюджета") -> 0 | Q129: =SUMIFS(Q130:Q1006,I130:I1006,"181Р500000",B130:B1006,"финансирование за счет федерального бюджета") -> 0 | R129: =SUMIFS(R130:R1006,I130:I1006,"181Р500000",B130:B1006,"финансирование за счет федерального бюджета") -> 0 | S129: =SUMIFS(S130:S1006,I130:I1006,"181Р500000",B130:B1006,"финансирование за счет федерального бюджета") -> 0 | T129: =SUMIFS(T130:T1006,I130:I1006,"181Р500000",B130:B1006,"финансирование за счет федерального бюджета") -> 0 | U129: =SUMIFS(U130:U1006,I130:I1006,"181Р500000",B130:B1006,"финансирование за счет федерального бюджета") -> 0 | V129: =SUMIFS(V130:V1006,I130:I1006,"181Р500000",B130:B1006,"финансирование за счет федерального бюджета") -> 0 | W129: =SUMIFS(W130:W1006,I130:I1006,"181Р500000",B130:B1006,"финансирование за счет федерального бюджета") -> 0 | X129: =SUMIFS(X130:X1006,I130:I1006,"181Р500000",B130:B1006,"финансирование за счет федерального бюджета") -> 0 | Y129: =SUM(M129:X129) -> 0
C130: Х | D130: Х | E130: Х | F130: Х | G130: Х | H130: Х | I130: Х | J130: Х | K130: Х | L130: Х | M130: Х | N130: Х | O130: Х | P130: Х | Q130: Х | R130: Х | S130: Х | T130: Х | U130: Х | V130: Х | W130: Х | X130: Х | Y130: Х
B131: финансирование за счет всех источников | C131: тыс.рублей | D131: Х | E131: Х | F131: Х | G131: Х | H131: 0110000 | I131: 181Р500000 | J131: 000 | K131: Х | L131: Х | M131: =SUM(M136:M138) -> 0 | N131: 0 | O131: 0 | P131: 0 | Q131: 0 | R131: 13635.6 | S131: =S133+S134 -> 0 | T131: 0 | U131: 0 | V131: 0 | W131: 0 | X131: 0 | Y131: =SUM(P131:X131) -> 13635.6
B132: в т.ч. | C132: Х | D132: Х | E132: Х | F132: Х | G132: Х | H132: Х | I132: Х | J132: Х | S132: Х | T132: Х | U132: Х | V132: Х | W132: Х | X132: Х | Y132: Х
B133: финансирование за счет краевого бюджета | C133: тыс.рублей | D133: Х | E133: Х | F133: Х | G133: Х | H133: 0110000 | I133: 181Р500000 | J133: 000 | K133: Х | L133: Х | M133: =SUMIFS(M136:M138,B136:B138,B133) -> 0 | N133: =SUMIFS(N136:N138,B136:B138,B133) -> 0 | O133: =SUMIFS(O136:O138,B136:B138,B133) -> 0 | P133: =SUMIFS(P136:P138,B136:B138,B133) -> 0 | Q133: =SUMIFS(Q136:Q138,B136:B138,B133) -> 0 | R133: =SUMIFS(R136:R138,B136:B138,B133) -> 13635.6 | S133: =SUMIFS(S136:S138,B136:B138,B133) -> 0 | T133: =SUMIFS(T136:T138,B136:B138,B133) -> 0 | U133: =SUMIFS(U136:U138,B136:B138,B133) -> 0 | V133: =SUMIFS(V136:V138,B136:B138,B133) -> 0 | W133: =SUMIFS(W136:W138,B136:B138,B133) -> 0 | X133: =SUMIFS(X136:X138,B136:B138,B133) -> 0 | Y133: =SUM(M133:X133) -> 13635.6
B134: финансирование за счет федерального бюджета | C134: тыс.рублей | D134: Х | E134: Х | F134: Х | G134: Х | H134: 0110000 | I134: 181Р500000 | J134: 000 | K134: Х | L134: Х | M134: =SUMIFS(M136:M138,B136:B138,B134) -> 0 | N134: =SUMIFS(N136:N138,B136:B138,B134) -> 0 | O134: =SUMIFS(O136:O138,B136:B138,B134) -> 0 | P134: =SUMIFS(P136:P138,B136:B138,B134) -> 0 | Q134: =SUMIFS(Q136:Q138,B136:B138,B134) -> 0 | R134: =SUMIFS(R136:R138,B136:B138,B134) -> 0 | S134: =SUMIFS(S136:S138,B136:B138,B134) -> 0 | T134: =SUMIFS(T136:T138,B136:B138,B134) -> 0 | U134: =SUMIFS(U136:U138,B136:B138,B134) -> 0 | V134: =SUMIFS(V136:V138,B136:B138,B134) -> 0 | W134: =SUMIFS(W136:W138,B136:B138,B134) -> 0 | X134: =SUMIFS(X136:X138,B136:B138,B134) -> 0 | Y134: =SUM(M134:X134) -> 0
C135: Х | D135: Х | E135: Х | F135: Х | G135: Х | H135: Х | I135: Х | J135: Х | K135: Х | L135: Х | M135: Х | N135: Х | O135: Х | P135: Х | Q135: Х | R135: Х | S135: Х | T135: Х | U135: Х | V135: Х | W135: Х | X135: Х | Y135: Х
B136: финансирование за счет краевого бюджета | C136: тыс.рублей | D136: Х | E136: Х | F136: Х | G136: Х | H136: 0111102 | I136: 181Р503512 | J136: 240 | K136: Х | L136: Х | M136: 0 | N136: 0 | O136: 0 | P136: 0 | Q136: 0 | R136: =3350 -> 3350 | S136: 0 | T136: 0 | U136: 0 | V136: 0 | W136: 0 | X136: 0 | Y136: =SUM(P136:X136) -> 3350
B137: финансирование за счет краевого бюджета | C137: тыс.рублей | D137: Х | E137: Х | F137: Х | G137: Х | H137: 0111102 | I137: 181Р503512 | J137: 610 | K137: Х | L137: Х | M137: 0 | N137: 0 | O137: 0 | P137: 0 | Q137: 0 | R137: =1163-1163+5377.6 -> 5377.6 | S137: 0 | T137: 0 | U137: 0 | V137: 0 | W137: 0 | X137: 0 | Y137: =SUM(P137:X137) -> 5377.6
B138: финансирование за счет краевого бюджета | C138: тыс.рублей | D138: Х | E138: Х | F138: Х | G138: Х | H138: 0111102 | I138: 181Р503512 | J138: 630 | K138: Х | L138: Х | M138: 0 | N138: 0 | O138: 0 | P138: 0 | Q138: 0 | R138: =4908 -> 4908 | S138: 0 | T138: 0 | U138: 0 | V138: 0 | W138: 0 | X138: 0 | Y138: =SUM(P138:X138) -> 4908
A140: 1.2 ПОМ 1 | B140: Показатель "Проведение физкультурных и комплексных физкультурных мероприятий для всех категорий и групп населения" | C140: ед. | D140: Х | E140: Абсолютный показатель | F140: Х | G140: Х | H140: Х | I140: Х | J140: Х | K140: Х | L140: Х | M140: Х | N140: Х | O140: Х | P140: Х | Q140: Х | R140: 28 | S140: 28 | T140: 28 | U140: 28 | V140: 28 | W140: 28 | X140: 28 | Y140: =SUM(R140:X140) -> 196
A141: 2 | B141: Задача "Обеспечение успешного выступления забайкальских спортсменов на спортивных соревнованиях всероссийского и международного уровней и совершенствование системы подготовки спортивного резерва" | C141: Х | D141: Х | E141: Х | F141: Х | G141: Х | H141: Х | I141: Х | J141: Х | K141: Х | L141: Х | M141: Х | N141: Х | O141: Х | P141: Х | Q141: Х | R141: Х | S141: Х | T141: Х | U141: Х | V141: Х | W141: Х | X141: Х | Y141: Х
B142: Подпрограмма "Подготовка спортивного резерва в Забайкальском крае" | C142: Х | D142: 1 | E142: Х | F142: Х | G142: Х | H142: Х | I142: Х | J142: Х | K142: Х | L142: Х | M142: Х | N142: Х | O142: Х | P142: Х | Q142: Х | R142: Х | S142: Х | T142: Х | U142: Х | V142: Х | W142: Х | X142: Х | Y142: Х
B143: финансирование за счет всех источников | C143: тыс.рублей | D143: Х | E143: Х | F143: Х | G143: Х | H143: 0000000 | I143: 1820000000 | J143: Х | K143: Х | L143: Х | M143: =SUM(M145:M148) -> 359856.7 | N143: 320181.643 | O143: 270981.5 | P143: 299548.393 | Q143: 339249 | R143: 408873.59 | S143: =SUM(S145:S148) -> 427476.5 | T143: 482995.4 | U143: 512893.8 | V143: 504248.2 | W143: 386713.4 | X143: 481677 | Y143: =SUM(M143:X143) -> 4794695.126
B144: в т.ч. | C144: Х | D144: Х | E144: Х | F144: Х | G144: Х | H144: Х | I144: Х | J144: Х | K144: Х | L144: Х | M144: Х | N144: Х | O144: Х | P144: Х | Q144: Х | R144: Х | S144: Х | T144: Х | U144: Х | V144: Х | W144: Х | X144: Х | Y144: Х
B145: из краевого бюджета | C145: тыс.рублей | D145: Х | E145: Х | F145: Х | G145: Х | H145: 0000000 | I145: 1820000000 | J145: Х | K145: Х | L145: Х | M145: 352375.8 | N145: 313483.2 | O145: 264841.1 | P145: =SUMIFS(P155:P934,I155:I934,"1820100000",B155:B934,B145)+SUMIFS(P155:P934,I155:I934,"1820200000",B155:B934,B145)+SUMIFS(P155:P934,I155:I934,"1820300000",B155:B934,B145)+SUMIFS(P155:P934,I155:I934,"182Р500000",B155:B934,B145) -> 299548.393 | Q145: =SUMIFS(Q155:Q934,I155:I934,"1820100000",B155:B934,B145)+SUMIFS(Q155:Q934,I155:I934,"1820200000",B155:B934,B145)+SUMIFS(Q155:Q934,I155:I934,"1820300000",B155:B934,B145)+SUMIFS(Q155:Q934,I155:I934,"182Р500000",B155:B934,B145) -> 339249 | R145: =SUMIFS(R155:R934,I155:I934,"1820100000",B155:B934,B145)+SUMIFS(R155:R934,I155:I934,"1820200000",B155:B934,B145)+SUMIFS(R155:R934,I155:I934,"1820300000",B155:B934,B145)+SUMIFS(R155:R934,I155:I934,"182Р500000",B155:B934,B145) -> 401952.59 | S145: =SUMIFS(S155:S934,I155:I934,"1820100000",B155:B934,B145)+SUMIFS(S155:S934,I155:I934,"1820200000",B155:B934,B145)+SUMIFS(S155:S934,I155:I934,"1820300000",B155:B934,B145)+SUMIFS(S155:S934,I155:I934,"182Р500000",B155:B934,B145) -> 419690 | T145: =SUMIFS(T155:T934,I155:I934,"1820100000",B155:B934,B145)+SUMIFS(T155:T934,I155:I934,"1820200000",B155:B934,B145)+SUMIFS(T155:T934,I155:I934,"1820300000",B155:B934,B145)+SUMIFS(T155:T934,I155:I934,"182Р500000",B155:B934,B145) -> 477307.2 | U145: =SUMIFS(U155:U934,I155:I934,"1820100000",B155:B934,B145)+SUMIFS(U155:U934,I155:I934,"1820200000",B155:B934,B145)+SUMIFS(U155:U934,I155:I934,"1820300000",B155:B934,B145)+SUMIFS(U155:U934,I155:I934,"182Р500000",B155:B934,B145) -> 506816.8 | V145: =SUMIFS(V155:V934,I155:I934,"1820100000",B155:B934,B145)+SUMIFS(V155:V934,I155:I934,"1820200000",B155:B934,B145)+SUMIFS(V155:V934,I155:I934,"1820300000",B155:B934,B145)+SUMIFS(V155:V934,I155:I934,"182Р500000",B155:B934,B145) -> 499465.4 | W145: =SUMIFS(W155:W934,I155:I934,"1820100000",B155:B934,B145)+SUMIFS(W155:W934,I155:I934,"1820200000",B155:B934,B145)+SUMIFS(W155:W934,I155:I934,"1820300000",B155:B934,B145)+SUMIFS(W155:W934,I155:I934,"182Р500000",B155:B934,B145) -> 381755 | X145: =SUMIFS(X155:X934,I155:I934,"1820100000",B155:B934,B145)+SUMIFS(X155:X934,I155:I934,"1820200000",B155:B934,B145)+SUMIFS(X155:X934,I155:I934,"1820300000",B155:B934,B145)+SUMIFS(X155:X934,I155:I934,"182Р500000",B155:B934,B145) -> 480727 | Y145: =SUM(M145:X145) -> 4737211.483
B146: из федерального бюджета | C146: тыс.рублей | D146: Х | E146: Х | F146: Х | G146: Х | H146: 0000000 | I146: 1820000000 | J146: Х | K146: Х | L146: Х | M146: =SUMIFS(M155:M934,I155:I934,"1820100000",B155:B934,B146)+SUMIFS(M155:M934,I155:I934,"1820200000",B155:B934,B146)+SUMIFS(M155:M934,I155:I934,"1820300000",B155:B934,B146)+SUMIFS(M155:M934,I155:I934,"182Р500000",B155:B934,B146) -> 7480.9 | N146: =SUMIFS(N155:N934,I155:I934,"1820100000",B155:B934,B146)+SUMIFS(N155:N934,I155:I934,"1820200000",B155:B934,B146)+SUMIFS(N155:N934,I155:I934,"1820300000",B155:B934,B146)+SUMIFS(N155:N934,I155:I934,"182Р500000",B155:B934,B146) -> 6698.443 | O146: =SUMIFS(O155:O934,I155:I934,"1820100000",B155:B934,B146)+SUMIFS(O155:O934,I155:I934,"1820200000",B155:B934,B146)+SUMIFS(O155:O934,I155:I934,"1820300000",B155:B934,B146)+SUMIFS(O155:O934,I155:I934,"182Р500000",B155:B934,B146) -> 6140.4 | P146: =SUMIFS(P155:P934,I155:I934,"1820100000",B155:B934,B146)+SUMIFS(P155:P934,I155:I934,"1820200000",B155:B934,B146)+SUMIFS(P155:P934,I155:I934,"1820300000",B155:B934,B146)+SUMIFS(P155:P934,I155:I934,"182Р500000",B155:B934,B146) -> 0 | Q146: =SUMIFS(Q155:Q934,I155:I934,"1820100000",B155:B934,B146)+SUMIFS(Q155:Q934,I155:I934,"1820200000",B155:B934,B146)+SUMIFS(Q155:Q934,I155:I934,"1820300000",B155:B934,B146)+SUMIFS(Q155:Q934,I155:I934,"182Р500000",B155:B934,B146) -> 0 | R146: =SUMIFS(R155:R934,I155:I934,"1820100000",B155:B934,B146)+SUMIFS(R155:R934,I155:I934,"1820200000",B155:B934,B146)+SUMIFS(R155:R934,I155:I934,"1820300000",B155:B934,B146)+SUMIFS(R155:R934,I155:I934,"182Р500000",B155:B934,B146) -> 6921 | S146: =SUMIFS(S155:S934,I155:I934,"1820100000",B155:B934,B146)+SUMIFS(S155:S934,I155:I934,"1820200000",B155:B934,B146)+SUMIFS(S155:S934,I155:I934,"1820300000",B155:B934,B146)+SUMIFS(S155:S934,I155:I934,"182Р500000",B155:B934,B146) -> 7786.5 | T146: =SUMIFS(T155:T934,I155:I934,"1820100000",B155:B934,B146)+SUMIFS(T155:T934,I155:I934,"1820200000",B155:B934,B146)+SUMIFS(T155:T934,I155:I934,"1820300000",B155:B934,B146)+SUMIFS(T155:T934,I155:I934,"182Р500000",B155:B934,B146) -> 5688.2 | U146: =SUMIFS(U155:U934,I155:I934,"1820100000",B155:B934,B146)+SUMIFS(U155:U934,I155:I934,"1820200000",B155:B934,B146)+SUMIFS(U155:U934,I155:I934,"1820300000",B155:B934,B146)+SUMIFS(U155:U934,I155:I934,"182Р500000",B155:B934,B146) -> 6077 | V146: =SUMIFS(V155:V934,I155:I934,"1820100000",B155:B934,B146)+SUMIFS(V155:V934,I155:I934,"1820200000",B155:B934,B146)+SUMIFS(V155:V934,I155:I934,"1820300000",B155:B934,B146)+SUMIFS(V155:V934,I155:I934,"182Р500000",B155:B934,B146) -> 4782.8 | W146: =SUMIFS(W155:W934,I155:I934,"1820100000",B155:B934,B146)+SUMIFS(W155:W934,I155:I934,"1820200000",B155:B934,B146)+SUMIFS(W155:W934,I155:I934,"1820300000",B155:B934,B146)+SUMIFS(W155:W934,I155:I934,"182Р500000",B155:B934,B146) -> 4958.4 | X146: =SUMIFS(X155:X934,I155:I934,"1820100000",B155:B934,B146)+SUMIFS(X155:X934,I155:I934,"1820200000",B155:B934,B146)+SUMIFS(X155:X934,I155:I934,"1820300000",B155:B934,B146)+SUMIFS(X155:X934,I155:I934,"182Р500000",B155:B934,B146) -> 950 | Y146: =SUM(M146:X146) -> 57483.643
B147: из местных бюджетов | C147: тыс.рублей | D147: Х | E147: Х | F147: Х | G147: Х | H147: 0000000 | I147: 1820000000 | J147: Х | K147: Х | L147: Х | M147: 0 | N147: 0 | O147: 0 | P147: 0 | Q147: 0 | R147: 0 | S147: 0 | T147: 0 | U147: 0 | V147: 0 | W147: 0 | X147: 0 | Y147: =SUM(M147:X147) -> 0
B148: из внебюджетных источников | C148: тыс.рублей | D148: Х | E148: Х | F148: Х | G148: Х | H148: 0000000 | I148: 1820000000 | J148: Х | K148: Х | L148: Х | M148: 0 | N148: 0 | O148: 0 | P148: 0 | Q148: 0 | R148: 0 | S148: 0 | T148: 0 | U148: 0 | V148: 0 | W148: 0 | X148: 0 | Y148: =SUM(M148:X148) -> 0
A149: 2.ПП1 | B149: Показатель "Количество присвоенных званий "Мастер спорта России", "Мастер спорта России международного класса", "Заслуженный мастер спорта" | C149: чел. | D149: Х | E149: Абсолютный показатель (согласно приказам Минспорта России) | F149: Х | G149: Х | H149: Х | I149: Х | J149: Х | K149: Х | L149: Х | M149: 30 | N149: 30 | O149: 24 | P149: 23 | Q149: 40 | R149: 20 | S149: 20 | T149: 20 | U149: 20 | V149: 20 | W149: 20 | X149: 20 | Y149: =SUM(M149:X149) -> 287
A150: 2.ПП2 | B150: Показатель "Степень выполнения государственного задания краевыми государственными учреждениями, координация и регулирование деятельности которых возложены на Министерство физической культуры и спорта Забайкальского края, в части показателей объема" | C150: % | D150: Х | E150: (∑А/∑В) х 100 %, где: ∑А - сумма фактических значений показателей объема по всем подведомственным учреждениям за отчетный год, ∑В - сумма плановых значений показателей объема по всем подведомственным учреждениям на отчетный год | F150: Х | G150: Х | H150: Х | I150: Х | J150: Х | K150: Х | L150: Х | M150: 100 | N150: 100 | O150: 80 | P150: 81 | Q150: 82 | R150: 83 | S150: 85 | T150: 85 | U150: 85 | V150: 85 | W150: 85 | X150: 86 | Y150: Х
A151: 2.ПП3 | B151: Показатель "Доля граждан, занимающихся в спортивных организациях, в общей численности детей и молодежи в возрасте 6-15 лет" | C151: % | D151: Х | E151: А/В х 100 %, где: А - численность занимающихся в организациях физкультурно-спортивной направленности в возрасте от 6 до 15 лет, В - общая численность населения края в возрасте от 6 до 15 лет | F151: Х | G151: Х | H151: Х | I151: Х | J151: Х | K151: Х | L151: Х | M151: Х | N151: Х | O151: 16 | P151: 17 | Q151: 18 | R151: 19 | S151: 19.5 | T151: Х | U151: Х | V151: Х | W151: Х | X151: Х | Y151: Х
A152: 2.ПП4 | B152: Показатель "Количество квалифицированных тренеров и тренеров-преподавателей физкультурно-спортивных организаций, работающих по специальности" | C152: чел. | D152: Х | E152: Абсолютный показатель (согласно данным федерального статистического наблюдения по форме № 5-ФК) | F152: Х | G152: Х | H152: Х | I152: Х | J152: Х | K152: Х | L152: Х | M152: Х | N152: Х | O152: 500 | P152: 505 | Q152: 510 | R152: 515 | S152: 517 | T152: Х | U152: Х | V152: Х | W152: Х | X152: Х | Y152: Х
A153: 2.ПП5 | B153: Показатель "Доля организаций, оказывающих услуги по спортивной подготовке в соответствии с федеральными стандартами спортивной подготовки, в общем количестве организаций в сфере физической культуры и спорта, в том числе для лиц с ограниченными возможностями здоровья и инвалидов" | C153: % | D153: Х | E153: Досп=Чосп/Чо*100, где: Досп - доля организаций, оказывающих услуги по спортивной подготовке, Чосп - численность организаций, оказывающих услуги по спортивной подготовке в соответствии с федеральными стандартами согласно данным федерального статистического наблюдения по форме № 5-ФК, Чо - общая численность организаций, ведомственной принадлежности в сфере физической культуры и спорта согласно данным федерального статистического наблюдения по форме № 5-ФК | F153: Х | G153: Х | H153: Х | I153: Х | J153: Х | K153: Х | L153: Х | M153: Х | N153: Х | O153: 47 | P153: 35 | Q153: 90 | R153: 95 | S153: 96 | T153: Х | U153: Х | V153: Х | W153: Х | X153: Х | Y153: Х
A154: 2.ПП6 | B154: Показатель "Доля занимающихся на этапе высшего спортивного мастерства в организациях, осуществляющих спортивную подготовку, в общем количестве занимающихся на этапе совершенствования спортивного мастерства в организациях, осуществляющих спортивную подготовку" | C154: % | D154: Х | E154: Дзэвсм=Дз/Окз*100, где: Дзэвсм - доля занимающихся на этапе высшего спортивного мастерства в организациях, осуществляющих спортивную подготовку, Дз - численность занимающихся на этапе высшего спортивного мастерства в организациях, осуществляющих спортивную подготовку, согласно данным федерального статистического наблюдения по форме № 5-ФК, Окз - численность занимающихся на этапе совершенствования спортивного мастерства в организациях, осуществляющих спортивную подготовку, согласно данным федерального статистического наблюдения по форме № 5-ФК | F154: Х | G154: Х | H154: Х | I154: Х | J154: Х | K154: Х | L154: Х | M154: Х | N154: Х | O154: 33.9 | P154: 23 | Q154: 37 | R154: 37.5 | S154: 38 | T154: Х | U154: Х | V154: Х | W154: Х | X154: Х | Y154: Х
A155: 2.1 | B155: Основное мероприятие 1 "Организация деятельности краевых государственных учреждений, координация и регулирование деятельности которых возложены на Министерство физической культуры и спорта Забайкальского края" | C155: Х | D155: 0.3 | E155: Х | F155: 2014 - 2025 | G155: Министерство физической культуры и спорта Забайкальского края, Администрация Агинского Бурятского округа Забайкальского края | H155: Х | I155: Х | J155: Х | K155: Х | L155: Х | M155: Х | N155: Х | O155: Х | P155: Х | Q155: Х | R155: Х | S155: Х | T155: Х | U155: Х | V155: Х | W155: Х | X155: Х | Y155: Х
B156: финансирование за счет всех источников | C156: тыс.рублей | D156: Х | E156: Х | F156: Х | G156: Х | H156: 0000000 | I156: 1820100000 | J156: 000 | K156: Х | L156: Х | M156: =M158+M159 -> 316401.1 | N156: 283800.93 | O156: 248531.1 | P156: 270361.985 | Q156: 309009.6 | R156: 354800.4 | S156: =S158+S159 -> 360286.8 | T156: 385121.8 | U156: 395366.7 | V156: 396312.2 | W156: 360008.7 | X156: 394004.5 | Y156: =SUM(M156:X156) -> 4074005.815
B157: в т.ч. | C157: Х | D157: Х | E157: Х | F157: Х | G157: Х | H157: Х | I157: Х | J157: Х | K157: Х | L157: Х | M157: Х | N157: Х | O157: Х | P157: Х | Q157: Х | R157: Х | S157: Х | T157: Х | U157: Х | V157: Х | W157: Х | X157: Х | Y157: Х
B158: из краевого бюджета | C158: тыс.рублей | D158: Х | E158: Х | F158: Х | G158: Х | H158: 0000000 | I158: 1820100000 | J158: 000 | K158: Х | L158: Х | M158: =SUMIFS(M160:M934,I160:I934,"1820100000",B160:B934,"финансирование за счет краевого бюджета") -> 316401.1 | N158: =SUMIFS(N160:N934,I160:I934,"1820100000",B160:B934,"финансирование за счет краевого бюджета") -> 283800.93 | O158: =SUMIFS(O160:O934,I160:I934,"1820100000",B160:B934,"финансирование за счет краевого бюджета") -> 248531.1 | P158: =SUMIFS(P160:P934,I160:I934,"1820100000",B160:B934,"финансирование за счет краевого бюджета") -> 270361.985 | Q158: =SUMIFS(Q160:Q934,I160:I934,"1820100000",B160:B934,"финансирование за счет краевого бюджета") -> 309009.6 | R158: =SUMIFS(R160:R934,I160:I934,"1820100000",B160:B934,"финансирование за счет краевого бюджета") -> 354800.4 | S158: =SUMIFS(S160:S934,I160:I934,"1820100000",B160:B934,"финансирование за счет краевого бюджета") -> 360286.8 | T158: =T165+T172+T173+T198+T224 -> 384887.4 | U158: =SUMIFS(U160:U934,I160:I934,"1820100000",B160:B934,"финансирование за счет краевого бюджета") -> 394663.6 | V158: =SUMIFS(V160:V934,I160:I934,"1820100000",B160:B934,"финансирование за счет краевого бюджета") -> 395362.2 | W158: =SUMIFS(W160:W934,I160:I934,"1820100000",B160:B934,"финансирование за счет краевого бюджета") -> 359058.7 | X158: =SUMIFS(X160:X934,I160:I934,"1820100000",B160:B934,"финансирование за счет краевого бюджета") -> 393054.5 | Y158: =SUM(M158:X158) -> 4070218.315
B159: из федерального бюджета | C159: тыс.рублей | D159: Х | E159: Х | F159: Х | G159: Х | H159: 0000000 | I159: 1820100000 | J159: 000 | K159: Х | L159: Х | M159: =SUMIFS(M160:M934,I160:I934,"1820100000",B160:B934,"финансирование за счет федерального бюджета") -> 0 | N159: =SUMIFS(N160:N934,I160:I934,"1820100000",B160:B934,"финансирование за счет федерального бюджета") -> 0 | O159: =SUMIFS(O160:O934,I160:I934,"1820100000",B160:B934,"финансирование за счет федерального бюджета") -> 0 | P159: =SUMIFS(P160:P934,I160:I934,"1820100000",B160:B934,"финансирование за счет федерального бюджета") -> 0 | Q159: =SUMIFS(Q160:Q934,I160:I934,"1820100000",B160:B934,"финансирование за счет федерального бюджета") -> 0 | R159: =SUMIFS(R160:R934,I160:I934,"1820100000",B160:B934,"финансирование за счет федерального бюджета") -> 0 | S159: =SUMIFS(S160:S934,I160:I934,"1820100000",B160:B934,"финансирование за счет федерального бюджета") -> 0 | T159: =SUMIFS(T160:T934,I160:I934,"1820100000",B160:B934,"финансирование за счет федерального бюджета") -> 234.4 | U159: =SUMIFS(U160:U934,I160:I934,"1820100000",B160:B934,"финансирование за счет федерального бюджета") -> 703.1 | V159: =SUMIFS(V160:V934,I160:I934,"1820100000",B160:B934,"финансирование за счет федерального бюджета") -> 950 | W159: =SUMIFS(W160:W934,I160:I934,"1820100000",B160:B934,"финансирование за счет федерального бюджета") -> 950 | X159: =SUMIFS(X160:X934,I160:I934,"1820100000",B160:B934,"финансирование за счет федерального бюджета") -> 950 | Y159: =SUM(M159:X159) -> 3787.5
A160: 2.1 ПОМ1 | B160: Показатель "Количество краевых государственных учреждений, координация и регулирование деятельности которых возложены на Министерство физической культуры и спорта Забайкальского края" | C160: ед. | D160: Х | E160: Абсолютный показатель | F160: Х | G160: Х | H160: X | I160: Х | J160: Х | K160: Х | L160: Х | M160: 9 | N160: 9 | O160: 9 | P160: 9 | Q160: 9 | R160: 9 | S160: 9 | T160: 9 | U160: 9 | V160: 9 | W160: 9 | X160: 9 | Y160: Х
A161: 2.1.1 | B161: Мероприятие 1 "Оказание ГБУ "СШОР № 3" Забайкальского края государственной услуги по предоставлению дополнительного образования в области физической культуры и спорта» | C161: Х | D161: Х | E161: Х | F161: 2014-2017 | G161: Министерство физической культуры и спорта Забайкальского края | H161: Х | I161: Х | J161: Х | K161: Х | L161: Х | M161: Х | N161: Х | O161: Х | P161: Х | Q161: Х | R161: Х | S161: Х | T161: Х | U161: Х | V161: Х | W161: Х | X161: Х | Y161: Х
B162: финансирование за счет всех источников | C162: тыс.рублей | D162: Х | E162: Х | F162: Х | G162: Х | H162: 0110000 | I162: 1820100000 | J162: 000 | K162: Х | L162: Х | M162: =M164+M165 -> 191636.5 | N162: 164093.63 | O162: 72497 | P162: =P164+P165 -> 0 | Q162: 0 | R162: 0 | S162: =S164+S165 -> 0 | T162: 0 | U162: 0 | V162: 0 | W162: 0 | X162: 0 | Y162: =SUM(M162:X162) -> 428227.13
B163: в т.ч. | C163: Х | D163: Х | E163: Х | F163: Х | G163: Х | H163: Х | I163: Х | J163: Х | K163: Х | L163: Х | M163: Х | N163: Х | O163: Х | P163: Х | Q163: Х | R163: Х | S163: Х | T163: Х | U163: Х | V163: Х | W163: Х | X163: Х | Y163: Х
B164: финансирование за счет федерального бюджета | C164: тыс.рублей | D164: Х | E164: Х | F164: Х | G164: Х | H164: 0110000 | I164: 1820100000 | J164: 000 | K164: Х | L164: Х | M164: =SUMIFS(M167:M169,B167:B169,B164) -> 0 | N164: =SUMIFS(N167:N169,B167:B169,B164) -> 0 | O164: =SUMIFS(O167:O169,B167:B169,B164) -> 0 | P164: =SUMIFS(P167:P169,B167:B169,B164) -> 0 | Q164: =SUMIFS(Q167:Q169,B167:B169,B164) -> 0 | R164: =SUMIFS(R167:R169,B167:B169,B164) -> 0 | S164: =SUMIFS(S167:S169,B167:B169,B164) -> 0 | T164: =SUMIFS(T167:T169,B167:B169,B164) -> 0 | U164: =SUMIFS(U167:U169,B167:B169,B164) -> 0 | V164: =SUMIFS(V167:V169,B167:B169,B164) -> 0 | W164: =SUMIFS(W167:W169,B167:B169,B164) -> 0 | X164: =SUMIFS(X167:X169,B167:B169,B164) -> 0 | Y164: =SUM(M164:X164) -> 0
B165: финансирование за счет краевого бюджета | C165: тыс.рублей | D165: Х | E165: Х | F165: Х | G165: Х | H165: 0110000 | I165: 1820100000 | J165: 000 | K165: Х | L165: Х | M165: =SUMIFS(M167:M169,B167:B169,B165) -> 191636.5 | N165: =SUMIFS(N167:N169,B167:B169,B165) -> 164093.63 | O165: =SUMIFS(O167:O169,B167:B169,B165) -> 72497 | P165: =SUMIFS(P167:P169,B167:B169,B165) -> 0 | Q165: =SUMIFS(Q167:Q169,B167:B169,B165) -> 0 | R165: =SUMIFS(R167:R169,B167:B169,B165) -> 0 | S165: =SUMIFS(S167:S169,B167:B169,B165) -> 0 | T165: =SUMIFS(T167:T169,B167:B169,B165) -> 0 | U165: =SUMIFS(U167:U169,B167:B169,B165) -> 0 | V165: =SUMIFS(V167:V169,B167:B169,B165) -> 0 | W165: =SUMIFS(W167:W169,B167:B169,B165) -> 0 | X165: =SUMIFS(X167:X169,B167:B169,B165) -> 0 | Y165: =SUM(M165:X165) -> 428227.13
C166: Х | D166: Х | E166: Х | F166: Х | G166: Х | H166: Х | I166: Х | J166: Х | K166: Х | L166: Х | M166: Х | N166: Х | O166: Х | P166: Х | Q166: Х | R166: Х | S166: Х | T166: Х | U166: Х | V166: Х | W166: Х | X166: Х | Y166: Х
B167: финансирование за счет краевого бюджета | C167: тыс.рублей | D167: Х | E167: Х | F167: Х | G167: Х | H167: 0110702 | I167: 1820113423 | J167: 610 | K167: Х | L167: Х | M167: 191636.5 | N167: 164041.83 | O167: 72497 | P167: 0 | Q167: 0 | R167: 0 | S167: 0 | T167: 0 | U167: 0 | V167: 0 | W167: 0 | X167: 0 | Y167: =SUM(M167:X167) -> 428175.33
B168: финансирование за счет краевого бюджета | C168: тыс.рублей | D168: Х | E168: Х | F168: Х | G168: Х | H168: 0110703 | I168: 1820113423 | J168: 610 | K168: Х | L168: Х | M168: 0 | N168: 0 | O168: 0 | P168: 0 | Q168: 0 | R168: 0 | S168: 0 | T168: 0 | U168: 0 | V168: 0 | W168: 0 | X168: 0 | Y168: =SUM(M168:X168) -> 0
B169: финансирование за счет краевого бюджета | C169: тыс.рублей | D169: Х | E169: Х | F169: Х | G169: Х | H169: 0110702 | I169: 1820113423 | J169: 610 | K169: Х | L169: Х | M169: 0 | N169: 51.8 | O169: 0 | P169: 0 | Q169: 0 | R169: 0 | S169: 0 | T169: 0 | U169: 0 | V169: 0 | W169: 0 | X169: 0 | Y169: =SUM(M169:X169) -> 51.8
A170: 2.1.1 ПМ1 | B170: Показатель "Совокупный объем предоставления услуги «Предоставление дополнительного образования в области физической культуры и спорта" | C170: чел. | D170: Х | E170: Абсолютный показатель (согласно данных государственного задания) | F170: Х | G170: Х | H170: Х | I170: Х | J170: Х | K170: Х | L170: Х | M170: Х | N170: Х | O170: 180 | P170: 180 | Q170: Х | R170: Х | S170: Х | T170: Х | U170: Х | V170: Х | W170: Х | X170: Х | Y170: =SUM(O170:X170) -> 360
A171: 2.1.2 | B171: Мероприятие 2 "Оказание государственными учреждениями Забайкальского края государственной услуги "Спортивная подготовка по видам спорта" (ГБУ "СШОР № 1"» Забайкальского края, ГБУ "СШОР № 2" Забайкальского края, ГБУ "СШОР № 3" Забайкальского края, ГБУ "СШОР по биатлону" Забайкальского края, ГБУ "СШОР по боксу" Забайкальского края, ГАУ ФК "Чита", ГБУ "СШОР по адаптивным и национальным видам спорта" Забайкальского края)" | C171: Х | D171: Х | E171: Х | F171: 2014-2025 | G171: Министерство физической культуры и спорта Забайкальского края, Администрация Агинского Бурятского округа Забайкальского края | H171: Х | I171: Х | J171: Х | K171: Х | L171: Х | M171: Х | N171: Х | O171: Х | P171: Х | Q171: Х | R171: Х | S171: Х | T171: Х | U171: Х | V171: Х | W171: Х | X171: Х | Y171: Х
B172: финансирование за счет всех источников | C172: тыс.рублей | D172: Х | E172: Х | F172: Х | G172: Х | H172: 0110000 | I172: 1820100000 | J172: 000 | K172: Х | L172: Х | M172: =M175+M176 -> 43638.7 | N172: 39514.8 | O172: 112744.7 | P172: 197324.085 | Q172: 285085.1 | R172: 328746 | S172: =S175+S176 -> 322331.4 | T172: 318059.2 | U172: 315235.8 | V172: 314370.7 | W172: 291497.4 | X172: 314154.3 | Y172: =SUM(M172:X172) -> 2882702.185
B173: финансирование за счет всех источников | C173: тыс.рублей | D173: Х | E173: Х | F173: Х | G173: Х | H173: 0060000 | I173: 1820100000 | J173: 000 | K173: Х | L173: Х | M173: =M177+M178 -> 0 | N173: 0 | O173: 0 | P173: 0 | Q173: 0 | R173: 0 | S173: =S177+S178 -> 9871.2 | T173: =T178 -> 39459.5 | U173: =U177+U178 -> 50759.8 | V173: =V177+V178 -> 52210.5 | W173: =W177+W178 -> 40088.6 | X173: =X177+X178 -> 50222.7 | Y173: =SUM(M173:X173) -> 242612.3
B174: в т.ч. | C174: Х | D174: Х | E174: Х | F174: Х | G174: Х | H174: Х | I174: Х | J174: Х | K174: Х | L174: Х | M174: Х | N174: Х | O174: Х | P174: Х | Q174: Х | R174: Х | S174: Х | T174: Х | U174: Х | V174: Х | W174: Х | X174: Х | Y174: Х
B175: финансирование за счет федерального бюджета | C175: тыс.рублей | D175: Х | E175: Х | F175: Х | G175: Х | H175: 0110000 | I175: 1820100000 | J175: 000 | K175: Х | L175: Х | M175: =SUMIFS(M180:M183,B180:B183,B175,H180:H183,"0111103") -> 0 | N175: =SUMIFS(N180:N183,B180:B183,B175,H180:H183,"0111103") -> 0 | O175: =SUMIFS(O180:O183,B180:B183,B175,H180:H183,"0111103") -> 0 | P175: =SUMIFS(P180:P183,B180:B183,B175,H180:H183,"0111103") -> 0 | Q175: =SUMIFS(Q180:Q183,B180:B183,B175,H180:H183,"0111103") -> 0 | R175: =SUMIFS(R180:R183,B180:B183,B175,H180:H183,"0111103") -> 0 | S175: =SUMIFS(S180:S183,B180:B183,B175,H180:H183,"0111103") -> 0 | T175: =SUMIFS(T180:T183,B180:B183,B175,H180:H183,"0111103") -> 0 | U175: =SUMIFS(U180:U183,B180:B183,B175,H180:H183,"0111103") -> 0 | V175: =SUMIFS(V180:V183,B180:B183,B175,H180:H183,"0111103") -> 0 | W175: =SUMIFS(W180:W183,B180:B183,B175,H180:H183,"0111103") -> 0 | X175: =SUMIFS(X180:X183,B180:B183,B175,H180:H183,"0111103") -> 0 | Y175: =SUM(M175:X175) -> 0
B176: финансирование за счет краевого бюджета | C176: тыс.рублей | D176: Х | E176: Х | F176: Х | G176: Х | H176: 0110000 | I176: 1820100000 | J176: 000 | K176: Х | L176: Х | M176: =SUMIFS(M180:M183,B180:B183,B176,H180:H183,"0111103") -> 43638.7 | N176: =SUMIFS(N180:N183,B180:B183,B176,H180:H183,"0111103") -> 39514.8 | O176: =SUMIFS(O180:O183,B180:B183,B176,H180:H183,"0111103") -> 112744.7 | P176: =SUMIFS(P180:P183,B180:B183,B176,H180:H183,"0111103") -> 197324.085 | Q176: =SUMIFS(Q180:Q183,B180:B183,B176,H180:H183,"0111103") -> 285085.1 | R176: =SUMIFS(R180:R183,B180:B183,B176,H180:H183,"0111103") -> 328746 | S176: =SUMIFS(S180:S183,B180:B183,B176,H180:H183,"0111103") -> 322331.4 | T176: =T180+T183 -> 318059.2 | U176: =SUMIFS(U180:U183,B180:B183,B176,H180:H183,"0111103") -> 315235.8 | V176: =SUMIFS(V180:V183,B180:B183,B176,H180:H183,"0111103") -> 314370.7 | W176: =SUMIFS(W180:W183,B180:B183,B176,H180:H183,"0111103") -> 291497.4 | X176: =SUMIFS(X180:X183,B180:B183,B176,H180:H183,"0111103") -> 314154.3 | Y176: =SUM(M176:X176) -> 2882702.185
B177: финансирование за счет федерального бюджета | C177: тыс.рублей | D177: Х | E177: Х | F177: Х | G177: Х | H177: 0060000 | I177: 1820100000 | J177: 000 | K177: Х | L177: Х | M177: =SUMIFS(M180:M183,B180:B183,B177,H180:H183,"0061103") -> 0 | N177: =SUMIFS(N180:N183,B180:B183,B177,H180:H183,"0061103") -> 0 | O177: =SUMIFS(O180:O183,B180:B183,B177,H180:H183,"0061103") -> 0 | P177: =SUMIFS(P180:P183,B180:B183,B177,H180:H183,"0061103") -> 0 | Q177: =SUMIFS(Q180:Q183,B180:B183,B177,H180:H183,"0061103") -> 0 | R177: =SUMIFS(R180:R183,B180:B183,B177,H180:H183,"0061103") -> 0 | S177: =SUMIFS(S180:S183,B180:B183,B177,H180:H183,"0061103") -> 0 | T177: =SUMIFS(T180:T183,B180:B183,B177,H180:H183,"0061103") -> 0 | U177: =SUMIFS(U180:U183,B180:B183,B177,H180:H183,"0061103") -> 0 | V177: =SUMIFS(V180:V183,B180:B183,B177,H180:H183,"0061103") -> 0 | W177: =SUMIFS(W180:W183,B180:B183,B177,H180:H183,"0061103") -> 0 | X177: =SUMIFS(X180:X183,B180:B183,B177,H180:H183,"0061103") -> 0 | Y177: =SUM(M177:X177) -> 0
B178: финансирование за счет краевого бюджета | C178: тыс.рублей | D178: Х | E178: Х | F178: Х | G178: Х | H178: 0060000 | I178: 1820100000 | J178: 000 | K178: Х | L178: Х | M178: =SUMIFS(M180:M183,B180:B183,B178,H180:H183,"0061103") -> 0 | N178: =SUMIFS(N180:N183,B180:B183,B178,H180:H183,"0061103") -> 0 | O178: =SUMIFS(O180:O183,B180:B183,B178,H180:H183,"0061103") -> 0 | P178: =SUMIFS(P180:P183,B180:B183,B178,H180:H183,"0061103") -> 0 | Q178: =SUMIFS(Q180:Q183,B180:B183,B178,H180:H183,"0061103") -> 0 | R178: =SUMIFS(R180:R183,B180:B183,B178,H180:H183,"0061103") -> 0 | S178: =SUMIFS(S180:S183,B180:B183,B178,H180:H183,"0061103") -> 9871.2 | T178: =T182 -> 39459.5 | U178: =SUMIFS(U180:U183,B180:B183,B178,H180:H183,"0061103") -> 50759.8 | V178: =SUMIFS(V180:V183,B180:B183,B178,H180:H183,"0061103") -> 52210.5 | W178: =SUMIFS(W180:W183,B180:B183,B178,H180:H183,"0061103") -> 40088.6 | X178: =SUMIFS(X180:X183,B180:B183,B178,H180:H183,"0061103") -> 50222.7 | Y178: =SUM(M178:X178) -> 242612.3
C179: Х | D179: Х | E179: Х | F179: Х | G179: Х | H179: Х | I179: Х | J179: Х | K179: Х | L179: Х | M179: Х | N179: Х | O179: Х | P179: Х | Q179: Х | R179: Х | S179: Х | T179: Х | U179: Х | V179: Х | W179: Х | X179: Х | Y179: Х
B180: финансирование за счет краевого бюджета | C180: тыс.рублей | D180: Х | E180: Х | F180: Х | G180: Х | H180: 0111103 | I180: 1820113482 | J180: 610 | K180: Х | L180: Х | M180: 0 | N180: 0 | O180: =77250.7 -> 77250.7 | P180: =162901.385+5703.7 -> 168605.085 | Q180: =237649.2+3406.9 -> 241056.1 | R180: =271022.5+10000.6 -> 281023.1 | S180: 280027 | T180: 278031 | U180: 276467.8 | V180: 276706.5 | W180: 254787.6 | X180: 276495.8 | Y180: =SUM(M180:X180) -> 2410450.685
B181: финансирование за счет краевого бюджета | C181: тыс.рублей | D181: Х | E181: Х | F181: Х | G181: Х | H181: 0061103 | I181: 1820113447 | J181: 610 | K181: Х | L181: Х | M181: 0 | N181: 0 | O181: 0 | P181: 0 | Q181: 0 | R181: 0 | S181: 0 | T181: 0 | U181: 1720.2 | V181: 1720.2 | W181: 1324.5 | X181: 1654.8 | Y181: =SUM(M181:X181) -> 6419.7
B182: финансирование за счет краевого бюджета | C182: тыс.рублей | D182: Х | E182: Х | F182: Х | G182: Х | H182: 0061103 | I182: 1820113482 | J182: 610 | K182: Х | L182: Х | M182: 0 | N182: 0 | O182: 0 | P182: 0 | Q182: 0 | R182: 0 | S182: 9871.2 | T182: 39459.5 | U182: 49039.6 | V182: 50490.3 | W182: 38764.1 | X182: 48567.9 | Y182: =SUM(M182:X182) -> 236192.6
B183: финансирование за счет краевого бюджета | C183: тыс.рублей | D183: Х | E183: Х | F183: Х | G183: Х | H183: 0111103 | I183: 1820113482 | J183: 620 | K183: Х | L183: Х | M183: 43638.7 | N183: 39514.8 | O183: 35494 | P183: =28339+380 -> 28719 | Q183: =42989+1040 -> 44029 | R183: =44641.7+3081.2 -> 47722.9 | S183: 42304.4 | T183: 40028.2 | U183: 38768 | V183: 37664.2 | W183: 36709.8 | X183: 37658.5 | Y183: =SUM(M183:X183) -> 472251.5
A184: 2.1. 2 ПМ1 | B184: Показатель "Совокупный объем предоставления услуги "Спортивная подготовка по видам спорта" | C184: чел. | D184: Х | E184: Абсолютный показатель (согласно данным государственного задания) | F184: Х | G184: Х | H184: Х | I184: Х | J184: Х | K184: Х | L184: Х | M184: Х | N184: Х | O184: 3502 | P184: 3000 | Q184: 3000 | R184: 3000 | S184: 3000 | T184: 3000 | U184: 3000 | V184: 3000 | W184: 3000 | X184: 3000 | Y184: =SUM(M184:X184) -> 30502
A185: 2.1. 3 | B185: Мероприятие 3 "Оказание государственными учреждениями Забайкальского края работы по организации и обеспечению подготовки спортивного резерва (ГУ "РЦСП" Забайкальского края, ГБУ "СШОР по адаптивным и национальным видам спорта" Забайкальского края)" | C185: Х | D185: Х | E185: Х | F185: 2014-2025 | G185: Министерство физической культуры и спорта Забайкальского края, Администрация Агинского Бурятского округа Забайкальского края | H185: Х | I185: Х | J185: Х | K185: Х | L185: Х | M185: Х | N185: Х | O185: Х | P185: Х | Q185: Х | R185: Х | S185: Х | T185: Х | U185: Х | V185: Х | W185: Х | X185: Х | Y185: Х
B186: финансирование за счет всех источников | C186: тыс.рублей | D186: Х | E186: Х | F186: Х | G186: Х | H186: 0110000 | I186: 1820100000 | J186: 000 | K186: Х | L186: Х | M186: =M188+M189 -> 53530 | N186: 55137.2 | O186: 43730.6 | P186: 51443.9 | Q186: 0 | R186: 0 | S186: =S188+S189 -> 0 | T186: 0 | U186: 0 | V186: 0 | W186: 0 | X186: 0 | Y186: =SUM(M186:X186) -> 203841.7
B187: в т.ч. | C187: Х | D187: Х | E187: Х | F187: Х | G187: Х | H187: Х | I187: Х | J187: Х | K187: Х | L187: Х | M187: Х | N187: Х | O187: Х | P187: Х | Q187: Х | R187: Х | S187: Х | T187: Х | U187: Х | V187: Х | W187: Х | X187: Х | Y187: Х
B188: финансирование за счет федерального бюджета | C188: тыс.рублей | D188: Х | E188: Х | F188: Х | G188: Х | H188: 0110000 | I188: 1820100000 | J188: 000 | K188: Х | L188: Х | M188: =SUMIFS(M191:M192,B191:B192,B188) -> 0 | N188: =SUMIFS(N191:N192,B191:B192,B188) -> 0 | O188: =SUMIFS(O191:O192,B191:B192,B188) -> 0 | P188: =SUMIFS(P191:P192,B191:B192,B188) -> 0 | Q188: =SUMIFS(Q191:Q192,B191:B192,B188) -> 0 | R188: =SUMIFS(R191:R192,B191:B192,B188) -> 0 | S188: =SUMIFS(S191:S192,B191:B192,B188) -> 0 | T188: =SUMIFS(T191:T192,B191:B192,B188) -> 0 | U188: =SUMIFS(U191:U192,B191:B192,B188) -> 0 | V188: =SUMIFS(V191:V192,B191:B192,B188) -> 0 | W188: =SUMIFS(W191:W192,B191:B192,B188) -> 0 | X188: =SUMIFS(X191:X192,B191:B192,B188) -> 0 | Y188: =SUM(M188:X188) -> 0
B189: финансирование за счет краевого бюджета | C189: тыс.рублей | D189: Х | E189: Х | F189: Х | G189: Х | H189: 0110000 | I189: 1820100000 | J189: 000 | K189: Х | L189: Х | M189: =SUMIFS(M191:M192,B191:B192,B189) -> 53530 | N189: =SUMIFS(N191:N192,B191:B192,B189) -> 55137.2 | O189: =SUMIFS(O191:O192,B191:B192,B189) -> 43730.6 | P189: =SUMIFS(P191:P192,B191:B192,B189) -> 51443.9 | Q189: =SUMIFS(Q191:Q192,B191:B192,B189) -> 0 | R189: =SUMIFS(R191:R192,B191:B192,B189) -> 0 | S189: =SUMIFS(S191:S192,B191:B192,B189) -> 0 | T189: =SUMIFS(T191:T192,B191:B192,B189) -> 0 | U189: =SUMIFS(U191:U192,B191:B192,B189) -> 0 | V189: =SUMIFS(V191:V192,B191:B192,B189) -> 0 | W189: =SUMIFS(W191:W192,B191:B192,B189) -> 0 | X189: =SUMIFS(X191:X192,B191:B192,B189) -> 0 | Y189: =SUM(M189:X189) -> 203841.7
C190: Х | D190: Х | E190: Х | F190: Х | G190: Х | H190: Х | I190: Х | J190: Х | K190: Х | L190: Х | M190: Х | N190: Х | O190: Х | P190: Х | Q190: Х | R190: Х | S190: Х | T190: Х | U190: Х | V190: Х | W190: Х | X190: Х | Y190: Х
B191: финансирование за счет краевого бюджета | C191: тыс.рублей | D191: Х | E191: Х | F191: Х | G191: Х | H191: 0111103 | I191: 1820113482 | J191: 610 | K191: Х | L191: Х | M191: 53530 | N191: =53801+1336.2 -> 55137.2 | O191: 43730.6 | P191: =51258.4+185.5 -> 51443.9 | Q191: 0 | R191: 0 | S191: 0 | T191: 0 | U191: 0 | V191: 0 | W191: 0 | X191: 0 | Y191: =SUM(M191:X191) -> 203841.7
B192: финансирование за счет федерального бюджета | C192: тыс.рублей | D192: Х | E192: Х | F192: Х | G192: Х | H192: 0111103 | I192: 1820113482 | J192: 610 | K192: Х | L192: Х | M192: 0 | N192: 0 | O192: 0 | P192: 0 | Q192: 0 | R192: 0 | S192: 0 | T192: 0 | U192: 0 | V192: 0 | W192: 0 | X192: 0 | Y192: =SUM(M192:X192) -> 0
A193: 2.1. 3 ПМ1 | B193: Показатель "Организация и обеспечение подготовки спортивного резерва" | C193: чел. | D193: Х | E193: Абсолютный показатель (согласно данным государственного задания) | F193: Х | G193: Х | H193: Х | I193: Х | J193: Х | K193: Х | L193: Х | M193: Х | N193: Х | O193: 106 | P193: 106 | Q193: 106 | R193: 106 | S193: 106 | T193: 106 | U193: 106 | V193: 106 | W193: 106 | X193: 106 | Y193: =SUM(M193:X193) -> 1060
A194: 2.1. 4 | B194: Мероприятие 4 "Оказание ГПОУ "ССУ(т)ОР" Забайкальского края государственной услуги по реализации основных профессиональных образовательных программ среднего профессионального образования - программ подготовки специалистов среднего звена на базе среднего общего образования по укрупненной группе направлений подготовки и специальностей (профессий) 49.00.00 "Физическая культура и спорт" углубленной подготовки в училищах олимпийского резерва" | C194: Х | D194: Х | E194: Х | F194: 2014-2025 | G194: Министерство физической культуры и спорта Забайкальского края | H194: Х | I194: Х | J194: Х | K194: Х | L194: Х | M194: Х | N194: Х | O194: Х | P194: Х | Q194: Х | R194: Х | S194: Х | T194: Х | U194: Х | V194: Х | W194: Х | X194: Х | Y194: Х
B195: финансирование за счет всех источников | C195: тыс.рублей | D195: Х | E195: Х | F195: Х | G195: Х | H195: 0110000 | I195: 1820100000 | J195: 000 | K195: Х | L195: Х | M195: =M197+M198 -> 27595.9 | N195: 25055.3 | O195: 19558.8 | P195: 21594 | Q195: 23924.5 | R195: 26054.4 | S195: =S197+S198 -> 28084.2 | T195: 27337.5 | U195: 28579.5 | V195: 28708.5 | W195: 27398.7 | X195: 28603.5 | Y195: =SUM(M195:X195) -> 312494.8
B196: в т.ч. | C196: Х | D196: Х | E196: Х | F196: Х | G196: Х | H196: Х | I196: Х | J196: Х | K196: Х | L196: Х | M196: Х | N196: Х | O196: Х | P196: Х | Q196: Х | R196: Х | S196: Х | T196: Х | U196: Х | V196: Х | W196: Х | X196: Х | Y196: Х
B197: финансирование за счет федерального бюджета | C197: тыс.рублей | D197: Х | E197: Х | F197: Х | G197: Х | H197: 0110000 | I197: 1820100000 | J197: 000 | K197: Х | L197: Х | M197: =SUMIFS(M200:M201,B200:B201,B197) -> 0 | N197: =SUMIFS(N200:N201,B200:B201,B197) -> 0 | O197: =SUMIFS(O200:O201,B200:B201,B197) -> 0 | P197: =SUMIFS(P200:P201,B200:B201,B197) -> 0 | Q197: =SUMIFS(Q200:Q201,B200:B201,B197) -> 0 | R197: =SUMIFS(R200:R201,B200:B201,B197) -> 0 | S197: =SUMIFS(S200:S201,B200:B201,B197) -> 0 | T197: =SUMIFS(T200:T201,B200:B201,B197) -> 0 | U197: =SUMIFS(U200:U201,B200:B201,B197) -> 0 | V197: =SUMIFS(V200:V201,B200:B201,B197) -> 0 | W197: =SUMIFS(W200:W201,B200:B201,B197) -> 0 | X197: =SUMIFS(X200:X201,B200:B201,B197) -> 0 | Y197: =SUM(M197:W197) -> 0
B198: финансирование за счет краевого бюджета | C198: тыс.рублей | D198: Х | E198: Х | F198: Х | G198: Х | H198: 0110000 | I198: 1820100000 | J198: 000 | K198: Х | L198: Х | M198: =SUMIFS(M200:M201,B200:B201,B198) -> 27595.9 | N198: =SUMIFS(N200:N201,B200:B201,B198) -> 25055.3 | O198: =SUMIFS(O200:O201,B200:B201,B198) -> 19558.8 | P198: =SUMIFS(P200:P201,B200:B201,B198) -> 21594 | Q198: =SUMIFS(Q200:Q201,B200:B201,B198) -> 23924.5 | R198: =SUMIFS(R200:R201,B200:B201,B198) -> 26054.4 | S198: =SUMIFS(S200:S201,B200:B201,B198) -> 28084.2 | T198: =SUMIFS(T200:T201,B200:B201,B198) -> 27337.5 | U198: =SUMIFS(U200:U201,B200:B201,B198) -> 28579.5 | V198: =SUMIFS(V200:V201,B200:B201,B198) -> 28708.5 | W198: =SUMIFS(W200:W201,B200:B201,B198) -> 27398.7 | X198: =SUMIFS(X200:X201,B200:B201,B198) -> 28603.5 | Y198: =SUM(M198:X198) -> 312494.8
C199: Х | D199: Х | E199: Х | F199: Х | G199: Х | H199: Х | I199: Х | J199: Х | K199: Х | L199: Х | M199: Х | N199: Х | O199: Х | P199: Х | Q199: Х | R199: Х | S199: Х | T199: Х | U199: Х | V199: Х | W199: Х | X199: Х | Y199: Х
B200: финансирование за счет краевого бюджета | C200: тыс.рублей | D200: Х | E200: Х | F200: Х | G200: Х | H200: 0110704 | I200: 1820113427 | J200: 610 | K200: Х | L200: Х | M200: 27595.9 | N200: 25055.3 | O200: 19558.8 | P200: 21594 | Q200: 23924.5 | R200: 26054.4 | S200: 28084.2 | T200: 27337.5 | U200: 28579.5 | V200: 28708.5 | W200: 27398.7 | X200: 28603.5 | Y200: =SUM(M200:X200) -> 312494.8
B201: финансирование за счет краевого бюджета | C201: тыс.рублей | D201: Х | E201: Х | F201: Х | G201: Х | H201: 0110704 | I201: 1820113427 | J201: 610 | K201: Х | L201: Х | M201: 0 | N201: 0 | O201: 0 | P201: 0 | Q201: 0 | R201: 0 | S201: 0 | T201: 0 | U201: 0 | V201: 0 | W201: 0 | X201: 0 | Y201: =SUM(M201:X201) -> 0
A202: 2.1. 4 ПМ1 | B202: Показатель "Количество человек, осваивающих основные профессиональные образовательные программы среднего профессионального образования по направлению подготовки 49.00.00 "Физическая культура и спорт" | C202: чел. | D202: Х | E202: Абсолютный показатель (согласно данным государственного задания) | F202: Х | G202: Х | H202: Х | I202: Х | J202: Х | K202: Х | L202: Х | M202: 57 | N202: 57 | O202: 57 | P202: 57 | Q202: 67 | R202: 65 | S202: 67 | T202: 67 | U202: 67 | V202: 67 | W202: 67 | X202: 67 | Y202: =SUM(M202:X202) -> 762
A203: 2.1. 5 | B203: Мероприятие 5 "Медико-биологическое обеспечение спортивных сборных команд Забайкальского края (ГУ "РЦСП" Забайкальского края)" | C203: Х | D203: Х | E203: Х | F203: 2018-2025 | G203: Министерство физической культуры и спорта Забайкальского края | H203: Х | I203: Х | J203: Х | K203: Х | L203: Х | M203: Х | N203: Х | O203: Х | P203: Х | Q203: Х | R203: Х | S203: Х | T203: Х | U203: Х | V203: Х | W203: Х | X203: Х | Y203: Х
B204: финансирование за счет всех источников | C204: тыс.рублей | D204: Х | E204: Х | F204: Х | G204: Х | H204: 0110000 | I204: 1820100000 | J204: 000 | K204: Х | L204: Х | M204: =M206+M207 -> 0 | N204: 0 | O204: 0 | P204: 0 | Q204: 0 | R204: 0 | S204: =S206+S207 -> 0 | T204: 0 | U204: 0 | V204: 0 | W204: 0 | X204: 0 | Y204: 0
B205: в т.ч. | C205: Х | D205: Х | E205: Х | F205: Х | G205: Х | H205: Х | I205: Х | J205: Х | K205: Х | L205: Х | M205: Х | N205: Х | O205: Х | P205: Х | Q205: Х | R205: Х | S205: Х | T205: Х | U205: Х | V205: Х | W205: Х | X205: Х | Y205: Х
... 810 more rows
